Cogmind - Beta 14 @@@ ROGUE MODE // 2024.10.26 @ 07:32:46 Player: Spoodle Result: Destroyed by H-88 Terminator with Heavy Machine Gun Performance ------------- Evolutions (9) 4500 Regions Visited (32) 6400 Robots Destroyed (453) 2265 Value Destroyed (20641) 20641 Prototype IDs (109) 2180 Alien Tech Used (8) 1600 Bonus (25961) 25961 TOTAL SCORE: 63547 Bonus ------- High Alert Combat Kills 2968 Follower Combat Kills 1297 Network Hubs Disabled 400 Met Data Miner 300 Met Zhirov 300 Met Warlord at Base 500 MAIN.C Attacked Warlord 500 Built Enhanced Grunts 300 A7 Reached Mainframe 300 Met R17 at Cetus 500 Hacked Protovariant 500 Met R17 at Research 2000 Met Warlord at Research 2000 Invited to Help at Command 2000 Destroyed MAIN.C Guards 500 Met MAIN.C 5000 Hacked MAIN.C 300 Destroyed MAIN.C Shell 5000 Met Warlord at Command 2000 Friendly Fire -704 Cogmind --------- Core Integrity 0/1600 Matter 101/300 Energy 358/840 System Corruption 0% Temperature Cool (0) Movement Walking (176) Ox1 Location -1/Command Parts ------- > --- POWER (3) -------- Zero-point Reactor Vortex Chain Reactor > --- PROPULSION (6) --- Enhanced Biometal Leg Enhanced Biometal Leg Enhanced Biometal Leg Experimental Myomer Leg Centrium Leg High-density Centrium Leg > --- UTILITY (15) ----- Experimental Cooling System High-capacity Storage Unit Advanced Signal Interpreter Experimental Targeting Computer Experimental Core Analyzer Phase Armor Phase Armor Experimental EM Disruption Field Experimental Force Field Antimissile System System Mapper Advanced Corruption Screen > --- WEAPON (1) ------- (None) > --- INVENTORY (20) --- Quantum Reactor Quantum Reactor Experimental Myomer Leg Centrium Leg Experimental Cooling System Advanced Energy Well (0) Advanced Sensor Array Makeshift Transmission Jammer Experimental Cloaking Device Improved Remote Force Field Advanced Hacking Suite Spacefold Activator Compact HERF Cannon Enhanced Nova Cannon Tiamat Missile Launcher Tiamat Missile Launcher Ragnarok Missile Launcher Advanced Remote Datajack Peak State ------------ > --- POWER ------------ Zero-point Reactor Vortex Chain Reactor > --- PROPULSION ------- Enhanced Biometal Leg Enhanced Biometal Leg Enhanced Biometal Leg Centrium Leg Centrium Leg High-density Centrium Leg > --- UTILITY ---------- Experimental Cooling System High-capacity Storage Unit Advanced Signal Interpreter Experimental Targeting Computer Experimental Core Analyzer Quantum Capacitor Phase Armor Thermal Barrier Experimental EM Disruption Field Experimental Force Field System Mapper Advanced Corruption Screen Spacefold Activator > --- WEAPON ----------- Cooled Nova Cannon > --- INVENTORY -------- Quantum Reactor Quantum Reactor Experimental Myomer Leg Experimental Myomer Leg Experimental Cooling System Advanced Energy Well Advanced Sensor Array Makeshift Transmission Jammer Experimental Cloaking Device Phase Armor Improved Remote Force Field Antimissile System Advanced Hacking Suite Compact HERF Cannon Enhanced Nova Cannon Tiamat Missile Launcher Tiamat Missile Launcher Ragnarok Missile Launcher Advanced Remote Datajack [Rating: 247] Favorites ----------- Power Antimatter Reactor Engine Cooled Ion Engine Power Core Light Fission Core Reactor Antimatter Reactor Propulsion Enhanced Flexi-carbon Leg Treads Light Treads Leg Enhanced Flexi-carbon Leg Wheel Wheel Flight Unit Improved VTOL Module Utility High-capacity Storage Unit Device Advanced Sensor Array Storage High-capacity Storage Unit Processor Advanced Targeting Computer Hackware Advanced Hacking Suite Protection Centrium Medium Armor Plating Artifact Phase Armor Weapon Neutron Cannon Energy Gun Enhanced Quantum Rifle Energy Cannon Neutron Cannon Ballistic Gun Improved Assault Rifle Ballistic Cannon Advanced Assault Cannon Launcher Tiamat Missile Launcher Special Weapon Advanced Remote Datajack Impact Weapon Core Stripper Slashing Weapon Chainsword Piercing Weapon Kinetic Spear Build | -11 -10 -10 -9 -9 -8 -7 -7 -7 -7 -6 -6 -6 -6 -6 -6 -5 -5 -5 -5 -4 -4 -4 -4 -4 -3 -3 -3 -2 -2 -2 -1 -1 ------- Run | Yrd Mat Min Mat Min Mat Fac Low Low Dat Pro Fac Ext Cet Arc Hub Fac Upp Upp Zhi Pro Fac Upp Upp War Pro Res Qua Res Tes Sec Acc Com Slots Evolved 18 | . . . 2 . 2 2 . . . . 2 . . . . 2 . . . . 2 . . . . 2 . 2 . . 2 . Power 2 | . . . . . . . . . . . 1 . . . . . . . . . . . . . . . . 1 . . . . Propulsion 4 | . . . 1 . . 1 . . . . . . . . . . . . . . 1 . . . . 1 . . . . . . Utility 13 | . . . 1 . 2 1 . . . . 1 . . . . 2 . . . . 1 . . . . 1 . 1 . . 3 . Weapon -1 | . . . . . . . . . . . . . . . . . . . . . . . . . . . . . . . -1 . Parts Attached 756 | 7 16 7 35 7 83 62 6 5 29 4 17 9 13 2 3 40 15 25 8 25 44 11 17 13 11 38 29 13 16 57 37 52 Power 38 | 1 3 1 6 . 2 . . . 2 . 2 . 2 . . 2 . 1 2 . 4 . 1 1 . . 1 1 . 4 1 1 Engine 15 | 1 2 1 6 . 2 . . . 1 . 1 . . . . 1 . . . . . . . . . . . . . . . . Core 3 | . 1 . . . . . . . . . 1 . . . . . . . . . 1 . . . . . . . . . . . Reactor 20 | . . . . . . . . . 1 . . . 2 . . 1 . 1 2 . 3 . 1 1 . . 1 1 . 4 1 1 Propulsion 82 | 2 3 . 5 1 21 13 . . 8 . . 1 . . 1 1 . 1 1 2 4 . . 2 . 3 2 3 2 2 1 3 Treads 35 | . 2 . 4 1 20 8 . . . . . . . . . . . . . . . . . . . . . . . . . . Leg 45 | 2 1 . . . . 5 . . 8 . . 1 . . 1 1 . 1 1 2 4 . . 2 . 3 2 3 2 2 1 3 Wheel 1 | . . . 1 . . . . . . . . . . . . . . . . . . . . . . . . . . . . . Hover . | . . . . . . . . . . . . . . . . . . . . . . . . . . . . . . . . . Flight 1 | . . . . . 1 . . . . . . . . . . . . . . . . . . . . . . . . . . . Utility 372 | 2 4 4 8 2 22 16 4 2 11 1 12 8 6 . 2 27 9 12 4 14 14 3 12 8 9 26 13 5 9 42 30 31 Device 284 | 1 2 4 4 1 11 11 3 1 7 1 10 5 2 . 2 22 7 9 2 8 10 2 10 7 9 20 8 2 9 38 28 28 Storage 6 | 1 2 . . . 1 . . . 1 . . . . . . . . . 1 . . . . . . . . . . . . . Processor 14 | . . . . . 1 1 . . . . . . . . . 3 . . . . . 1 . . . 3 1 3 . . 1 . Hackware 7 | . . . 1 . . 1 . . . . . . . . . . . . . . 2 . . . . 2 . . . . 1 . Protection 51 | . . . 3 1 9 3 1 1 3 . 2 3 4 . . 2 2 3 1 6 2 . 2 1 . 1 1 . . . . . Artifact 10 | . . . . . . . . . . . . . . . . . . . . . . . . . . . 3 . . 4 . 3 Weapon 264 | 2 6 2 16 4 38 33 2 3 8 3 3 . 5 2 . 10 6 11 1 9 22 8 4 2 2 9 13 4 5 9 5 17 Energy Gun 47 | 1 . . 1 . 15 12 . 1 . . . . 1 . . . . . . . 8 4 2 1 1 . . . . . . . Energy Cannon 134 | . 2 1 6 . 12 9 . 1 8 2 3 . 4 2 . 5 3 8 1 5 11 . . . . 9 10 4 4 8 5 11 Ballistic Gun 19 | 1 4 . 7 2 5 . . . . . . . . . . . . . . . . . . . . . . . . . . . Ballistic Cannon 1 | . . . . . . 1 . . . . . . . . . . . . . . . . . . . . . . . . . . Launcher 45 | . . 1 1 2 6 3 1 . . 1 . . . . . 4 3 3 . 4 3 4 2 1 1 . 2 . . . . 3 Special Weapon 4 | . . . 1 . . . . . . . . . . . . . . . . . . . . . . . . . . . . 3 Impact Weapon 3 | . . . . . . . . . . . . . . . . . . . . . . . . . . . 1 . 1 1 . . Slashing Weapon 10 | . . . . . . 8 1 1 . . . . . . . . . . . . . . . . . . . . . . . . Piercing Weapon 1 | . . . . . . . . . . . . . . . . 1 . . . . . . . . . . . . . . . . Special Melee Weapon . | . . . . . . . . . . . . . . . . . . . . . . . . . . . . . . . . . Unidentified Prototypes 58 | . . 1 5 . 2 1 . . 4 . 1 . 2 . . 5 . . 4 . 2 . . 3 4 6 5 2 3 5 . 3 Corrupted Parts 3 | . . . . . . . . . . 1 . . . . . . . . . 2 . . . . . . . . . . . . System Corruption 15 | . . . . . . . . . . 6 . . . . . . . . . 9 . . . . . . . . . . . . Parts Lost 23 | . . 1 1 . 2 1 . . 3 . . . . . 1 . . 4 . 3 3 . . . . . . . . . 2 2 Power 4 | . . 1 . . . . . . . . . . . . . . . 1 . . 1 . . . . . . . . . 1 . Propulsion 3 | . . . . . . . . . 1 . . . . . . . . 1 . . 1 . . . . . . . . . . . Utility 14 | . . . . . 2 . . . 2 . . . . . 1 . . 2 . 3 1 . . . . . . . . . 1 2 Weapon 2 | . . . 1 . . 1 . . . . . . . . . . . . . . . . . . . . . . . . . . Highest Loss Streak 3 | . . 1 1 . 1 1 . . 3 . . . . . 1 . . 2 . 1 1 . . . . . . . . . 1 1 To Critical Strikes 2 | . . . . . . . . . . . . . . . . . . 1 . . 1 . . . . . . . . . . . Average Slot Usage (%) 96 | . 100 99 99 100 98 99 100 100 98 100 95 100 99 100 100 94 100 97 88 93 98 100 98 94 93 93 92 89 90 90 86 87 Engine 3 | . 11 13 11 11 8 7 7 7 6 . 1 6 6 6 6 4 5 3 . . . . . . . . . . . . . . Reactor 5 | . . . . . . . . . . 7 6 6 6 6 6 5 5 6 11 11 9 10 10 10 10 9 6 7 8 7 8 8 Treads 6 | . 17 28 31 33 26 25 . . . . . . . . . . . . . . . . . . . . . . . . . . Leg 20 | . 10 . . . . 4 30 30 30 30 26 26 26 26 26 23 23 22 23 23 25 26 26 26 26 28 27 26 26 26 24 24 Device 17 | . 14 14 10 10 10 14 15 15 15 15 14 19 18 20 20 18 22 22 22 19 19 15 17 25 25 22 19 18 17 16 19 19 Storage 6 | . 14 14 11 11 9 7 7 7 7 7 6 6 6 6 6 5 5 5 5 5 5 5 5 5 5 4 4 4 4 4 4 4 Processor 10 | . . . . . 8 14 15 15 15 15 13 13 13 13 13 14 17 11 11 6 5 9 8 5 5 9 14 14 17 16 15 16 Hackware 2 | . . . 5 . . . . . . . . . . . . . . . . . 5 5 5 5 5 3 4 4 4 4 7 7 Protection 6 | . . . 5 11 16 7 7 7 5 7 9 6 7 6 6 6 5 9 11 12 14 15 12 5 5 4 2 . . . . . Energy Gun 3 | . 1 . . . 9 10 7 7 . . . . . . . . . . . . 7 9 9 9 9 . . . . . . . Energy Cannon 7 | . 17 27 10 . 3 2 . . 12 14 13 13 11 13 13 10 10 10 . 10 2 . . . . 8 8 8 7 7 4 3 Ballistic Gun 1 | . 9 . 11 22 4 . . . . . . . . . . . . . . . . . . . . . . . . . . . Peak Build Rating 247 | 7 9 14 20 21 38 52 51 53 74 76 92 96 104 103 103 119 117 120 112 118 139 139 140 136 142 156 187 210 221 229 233 247 Average Rating 109 | 4 7 8 16 19 32 46 50 52 60 75 84 92 100 103 102 110 116 115 105 113 134 136 135 130 138 150 160 200 212 216 227 230 On Entrance 101 | . 7 8 9 19 20 35 51 50 53 74 76 92 96 103 103 95 117 116 118 112 110 139 136 129 136 142 149 181 210 215 209 224 Naked Turns . | . . . . . . . . . . . . . . . . . . . . . . . . . . . . . . . . . Heaviest Build 204 | 15 30 30 40 44 69 68 70 71 86 86 103 108 115 106 103 115 118 121 111 133 131 125 125 128 127 140 163 174 184 181 172 204 Greatest Support 182 | 20 40 40 60 60 79 104 74 74 104 104 104 109 109 109 109 112 112 112 112 112 139 139 139 142 142 174 180 182 174 172 172 182 Greatest Overweight (x) 2 | . . . 2 . 1 1 . . 1 . . 1 1 . . 1 1 1 . 1 1 . . . . . . . 1 1 . 1 Average Overweight (x) . | . . . . . . . . . . . . . . . . . . . . 1 . . . . . . . . . . . . Largest Inventory Capacity 20 | 8 15 15 15 15 20 20 20 20 20 20 20 20 20 20 20 20 20 20 20 20 20 20 20 20 20 20 20 20 20 20 20 20 Average Capacity 19 | 5 11 15 15 15 19 20 20 20 20 20 20 20 20 20 20 20 20 20 20 20 20 20 20 20 20 20 20 20 20 20 20 20 Most Carried 20 | 5 13 15 15 15 20 20 20 20 20 20 20 20 20 20 20 20 20 20 20 20 20 20 20 20 20 20 20 20 20 20 20 20 Average Carried 18 | 4 10 14 14 14 19 19 19 20 18 20 19 20 19 20 20 19 19 19 19 19 19 19 19 19 19 19 19 20 19 19 19 18 Final Capacity 20 | 8 15 15 15 15 20 20 20 20 20 20 20 20 20 20 20 20 20 20 20 20 20 20 20 20 20 20 20 20 20 20 20 20 Final Carried 20 | 5 13 15 15 15 20 20 20 20 20 20 20 20 20 20 20 20 20 19 20 20 20 19 20 20 20 20 20 20 20 20 19 18 Class Distribution -------------------- 50% | Mutant 18% | Scavenger-Mutant 10% | Infiltrator-Skirmisher 8% | Hacker-Mutant 6% | Infiltrator-Mutant Dominant Class ---------------- Mutant | -10/Materials Mutant | -10/Mines Mutant | -9/Materials Scavenger-Mutant | -9/Mines Mutant | -8/Materials Scavenger-Mutant | -7/Factory Mutant | -7/Lower Caves Mutant | -7/Lower Caves Mutant | -7/Data Miner Mutant | -6/Proximity Caves Mutant | -6/Factory Mutant | -6/Extension Commander-Mutant | -6/Cetus Commander-Mutant | -6/Archives Commander-Mutant | -6/Hub_04(d) Mutant | -5/Factory Mutant | -5/Upper Caves Mutant | -5/Upper Caves Mutant | -5/Zhirov Mutant | -4/Proximity Caves Scavenger-Mutant | -4/Factory Scavenger-Mutant | -4/Upper Caves Scavenger-Mutant | -4/Upper Caves Derelict-Mutant | -4/Warlord Infiltrator-Mutant | -3/Proximity Caves Infiltrator-Mutant | -3/Research Skirmisher | -3/Quarantine Infiltrator-Skirmisher | -2/Research Infiltrator-Skirmisher | -2/Testing Infiltrator-Skirmisher | -2/Section 7 Hacker-Mutant | -1/Access Hacker-Mutant | -1/Command Resources | -11 -10 -10 -9 -9 -8 -7 -7 -7 -7 -6 -6 -6 -6 -6 -6 -5 -5 -5 -5 -4 -4 -4 -4 -4 -3 -3 -3 -2 -2 -2 -1 -1 ----------- Run | Yrd Mat Min Mat Min Mat Fac Low Low Dat Pro Fac Ext Cet Arc Hub Fac Upp Upp Zhi Pro Fac Upp Upp War Pro Res Qua Res Tes Sec Acc Com Matter Collected 9840 | 291 436 66 604 149 1074 682 114 60 289 45 183 80 140 20 30 377 375 553 . 523 515 166 640 41 374 398 290 260 155 401 139 370 Remotely . | . . . . . . . . . . . . . . . . . . . . . . . . . . . . . . . . . Salvage Created 19307 | 166 904 101 1254 188 2134 1062 132 . 325 41 553 483 141 278 . 800 384 511 . 528 1157 244 297 . 358 374 744 167 427 1313 1195 3046 Parts 913 | 13 46 10 76 20 111 54 6 . 6 4 30 25 6 15 . 49 20 9 . 26 57 1 18 . 18 14 37 4 9 61 59 109 Haulers Intercepted 16 | . 1 . 4 . 5 1 . . . . 1 . . . . . . . . . 1 . . . . 1 . 1 1 . . . Recyclers Shooed 8 | . 3 1 . 1 . . . . . . . . . . . . . . . . 1 . . . . . . . . . . 2 Parts Field Recycled . | . . . . . . . . . . . . . . . . . . . . . . . . . . . . . . . . . Retrieved Matter . | . . . . . . . . . . . . . . . . . . . . . . . . . . . . . . . . . Parts Self-Destructed 79 | . . . . . . . 5 2 . 4 . . . . . . 13 5 . 20 . . 15 . 15 . . . . . . . Prevented . | . . . . . . . . . . . . . . . . . . . . . . . . . . . . . . . . . Kills | -11 -10 -10 -9 -9 -8 -7 -7 -7 -7 -6 -6 -6 -6 -6 -6 -5 -5 -5 -5 -4 -4 -4 -4 -4 -3 -3 -3 -2 -2 -2 -1 -1 ------- Run | Yrd Mat Min Mat Min Mat Fac Low Low Dat Pro Fac Ext Cet Arc Hub Fac Upp Upp Zhi Pro Fac Upp Upp War Pro Res Qua Res Tes Sec Acc Com Combat Hostiles Destroyed 343 | . 15 5 24 10 42 18 3 . 3 3 8 8 2 . . 16 15 16 . 16 22 7 10 . 9 4 14 . 2 16 14 41 Guns 61 | . 12 . 12 4 14 9 . . . . . . . . . . . . . . 1 1 4 . 3 1 . . . . . . Cannons 130 | . 3 2 10 . 9 5 . . 2 . 6 8 1 . . 8 2 4 . 6 4 . . . . 2 8 . 1 12 9 28 AOE 117 | . . 3 2 6 16 4 3 . . 3 2 . . . . 8 13 10 . 10 12 6 6 . 6 . 2 . . . . 5 Classes Destroyed 21 | 2 5 . 3 . 1 2 1 . . . . 2 . . . . . 1 . 1 1 . . . . . 1 . 1 . . . Worker 22 | . 3 . 3 . 3 3 . . . . 3 . . . . 3 . . . . 3 . . . . . . . . . . 1 Builder 14 | . . . 1 . 2 2 . . . . . . . . . 4 . . . . 4 . . . . . . 1 . . . . Tunneler 10 | 4 . . 2 . 1 . . . . . . . . . . 1 . . . . 1 . . . . . . . . . 1 . Hauler 16 | . 1 . 4 . 5 1 . . . . 1 . . . . . . . . . 1 . . . . 1 . 1 1 . . . Recycler 13 | 1 4 . 1 1 1 2 . . . . . . . . . 1 . . . . 1 . . . . . . . . . . 1 Operator 14 | . 1 . . . . . . . . . . . . 9 . . . . . . 1 . . . . . 1 . . . . 2 Drone 4 | . . . . . . . . . . . . . . . . . . . . 2 . . . . 2 . . . . . . . Watcher 21 | . . . 4 . 4 2 . . . . . 1 . . . 3 . . . . . . . . . . . 1 . 1 2 3 Swarmer 94 | . 6 3 7 10 11 4 3 . . 3 . 1 . . . 8 5 4 . 4 8 . 5 . 4 . 3 . . . . 5 Grunt 118 | . 9 2 14 . 23 9 . . . . 4 2 . . . 3 9 10 . 4 2 4 2 . 3 . . . . 1 2 15 Brawler 3 | . . . . . . . . . . . . . . . . . . 1 . . 1 . . . . . . . . . . 1 Duelist 7 | . . . . . . . . . . . . 1 . . . . . . . . 1 . 1 . . . . . . . . 4 Protector 2 | . . . . . . . . . . . . . . . . . . . . . 1 . . . . . . . . . . 1 Sentry 25 | . . . 3 . 7 2 . . . . . 3 . . . 1 . . . . 2 1 . . . . . . . 3 1 2 Hunter 32 | . . . . . . 1 . . . . 2 . . . . . . . . 4 4 2 2 . . 2 2 . . 3 4 6 Programmer 45 | . . . . . . 2 . . . . 2 . . . . 4 . . . 2 3 . . . . 2 8 . 1 8 7 6 Heavy 1 | . . . . . 1 . . . . . . . . . . . . . . . . . . . . . . . . . . . Behemoth 3 | . . . . . . . . . . . . 1 . . . . 1 1 . . . . . . . . . . . . . . Cetus Guard 2 | . . . . . . . . . . . . . 2 . . . . . . . . . . . . . . . . . . . S7 Guard 1 | . . . . . . . . . . . . . . . . . . . . . . . . . . . . . . 1 . . Enhanced Grunt 3 | . . . . . . . . . 3 . . . . . . . . . . . . . . . . . . . . . . . Combat Programmer 1 | . . . . . . . . . . . . . . . . . . . . . . . . . . . . . . . . 1 Alpha 7 1 | . . . . . . . . . . . . . . . . . . . . . . . . . . . 1 . . . . . Fortress 1 | . . . . . . . . . . . . . . . . . . . . . . . . . . . . . 1 . . . Decomposer 1 | . . . . . . . . . . . . . . . . . . 1 . . . . . . . . . . . . . . Samaritan 1 | . . . . . . . 1 . . . . . . . . . . . . . . . . . . . . . . . . . Guerrilla 1 | . . . . . . . . . . . . . . 1 . . . . . . . . . . . . . . . . . . Best Kill Streak 10 | 3 3 3 5 4 10 4 3 . 1 3 3 2 2 4 . 5 5 4 . 4 8 5 5 . 5 2 6 2 1 3 5 7 Combat Bots Only 10 | . 3 3 4 4 10 4 3 . 1 3 3 2 2 . . 5 5 4 . 4 5 5 5 . 5 2 6 . 1 3 5 6 Max Kills in Single Turn 6 | 1 2 3 1 2 4 3 2 . 1 3 2 1 1 2 . 5 5 3 . 3 6 2 3 . 2 1 1 1 1 1 1 4 Gunslinging 1 | . 1 . . . . . . . . . . . . . . . . . . . . . . . . . . . . . . . Exploded 5 | . . 3 1 2 4 3 2 . . 3 1 . . . . 5 5 3 . 3 4 2 3 . 2 . 1 . . . . 3 Melee . | . . . . . . . . . . . . . . . . . . . . . . . . . . . . . . . . . Uniques/NPCs Destroyed . | . . . . . . . . . . . . . . . . . . . . . . . . . . . . . . . . . Combat | -11 -10 -10 -9 -9 -8 -7 -7 -7 -7 -6 -6 -6 -6 -6 -6 -5 -5 -5 -5 -4 -4 -4 -4 -4 -3 -3 -3 -2 -2 -2 -1 -1 -------- Run | Yrd Mat Min Mat Min Mat Fac Low Low Dat Pro Fac Ext Cet Arc Hub Fac Upp Upp Zhi Pro Fac Upp Upp War Pro Res Qua Res Tes Sec Acc Com Hostile Shots Fired 2271 | . 117 9 74 25 167 114 7 . 24 4 69 78 2 . 30 87 64 107 . 151 119 46 112 . 33 78 131 . 16 79 127 401 Missed 765 | . 28 2 23 8 60 47 2 . 3 2 28 31 2 . 8 37 27 30 . 39 42 18 39 . 7 20 41 . 3 19 50 149 Intercepted 16 | . . . . . . . . . . . . . . . . . . . . . . . . . . . . . . . . 16 Damage Taken 17864 | . 881 93 639 144 1729 802 40 . 858 24 394 365 70 60 305 437 278 851 . 887 644 227 511 . 194 699 1281 . 232 699 974 3546 Core 3177 | . 151 . 151 9 132 31 6 . 110 . 36 62 20 30 . 51 22 40 . 39 43 11 6 . 10 47 348 . 97 350 263 1112 Absorbed by Shields 8037 | . . . . . . 229 16 . 104 10 148 155 10 . 95 461 295 611 . 746 634 241 525 . 142 273 611 . 239 394 421 1677 Redirected to Core 1654 | . . . . . . . . . . . . . . . . . . . . . . . . . . . 279 . 97 145 230 903 Redirected to Shielding 352 | . . . . . 180 . . . . . . . . . . . . . . 50 73 14 35 . . . . . . . . . Ignored by Resistances 5494 | . . . . . 50 3 18 . . . 145 135 22 27 57 109 135 360 . 329 213 94 236 . 232 14 . . . 482 332 2501 Regen/Repaired (Parts) 3611 | . . . . . . . . . . . . . . . . . . . . . 818 . . 334 . . . . . 1150 . 1309 Core Remaining (%) 73 | 100 . 39 . 60 76 . . . . 79 . . . . 82 . . . . 84 . . . . 93 . 69 . . 55 . . Volleys Fired 1270 | 7 85 6 82 11 126 49 5 1 10 4 47 22 4 20 . 58 25 35 . 38 59 15 40 2 17 32 55 17 12 58 91 237 Largest 2 | 2 2 2 2 2 2 2 1 1 2 1 2 2 2 2 . 2 2 2 . 2 2 2 2 1 2 2 2 2 2 2 1 1 Hottest 270 | 70 120 120 120 46 144 155 80 69 176 90 180 180 240 180 . 180 180 195 . 180 203 130 130 46 130 226 226 208 240 270 94 150 Shots Fired 1947 | 14 170 11 161 17 220 93 6 2 19 4 66 43 7 40 . 98 40 60 . 59 99 26 71 2 28 49 82 23 15 94 91 237 Gun 616 | 14 118 . 76 13 156 69 2 1 . . . . 1 . . . . . . . 43 18 62 . 23 20 . . . . . . Cannon 1218 | . 52 10 82 . 51 20 . 1 19 3 66 43 6 40 . 96 31 47 . 52 51 . . . . 29 77 23 15 94 91 219 Launcher 100 | . . 1 2 4 13 4 4 . . 1 . . . . . 2 9 13 . 7 5 8 9 2 5 . 5 . . . . 6 Special 13 | . . . 1 . . . . . . . . . . . . . . . . . . . . . . . . . . . . 12 Kinetic 227 | 7 96 . 76 13 32 3 . . . . . . . . . . . . . . . . . . . . . . . . . . Thermal 1336 | 7 74 10 83 . 124 69 2 1 . 3 59 43 1 38 . 96 31 27 . 49 75 18 62 . 23 42 66 15 14 77 75 152 Explosive 100 | . . 1 2 4 13 4 4 . . 1 . . . . . 2 9 13 . 7 5 8 9 2 5 . 5 . . . . 6 Electromagnetic 272 | . . . . . 51 17 . 1 19 . 7 . 6 2 . . . 20 . 3 19 . . . . 7 11 8 1 17 16 67 Robot Hit Streak 32 | 7 7 3 14 5 20 23 . 10 12 3 12 18 15 19 . 15 13 15 . 26 12 8 10 . 7 8 6 3 3 10 12 32 Robot Miss Streak 9 | 1 7 5 3 1 4 2 . . 2 . 2 1 . 3 . 3 1 4 . 3 3 2 4 . 2 9 5 1 2 3 4 2 Penetration Max . | . . . . . . . . . . . . . . . . . . . . . . . . . . . . . . . . . Secondary Targets 5 | . 1 . 1 1 1 . . . . . . . . . . . . . . . . . . . 1 . . . . . . . Max Gunslinging Chain 1 | . 1 . 1 1 1 . . . . . . . . . . . . . . . . . . . 1 . . . . . . . Capacitor 304 | . . . . . . . . . . . . . . . . . . . . . . . . . . . . . . . 91 213 Shots Hit Robots 1142 | 9 84 5 103 10 152 72 4 1 16 1 28 28 6 25 . 48 22 44 . 41 56 9 17 . 17 24 39 3 7 41 55 175 Core Hits 688 | 5 35 6 45 10 93 54 7 . 9 4 16 16 5 20 1 31 26 27 . 23 42 20 14 3 17 8 15 3 3 19 20 91 Critical Kills 4 | . . . . . . . . . . . . . . . . . . . . . . . . . . . 1 . . 1 2 . Critical Parts Destroyed . | . . . . . . . . . . . . . . . . . . . . . . . . . . . . . . . . . Critical Strikes 15 | . . . . . 6 3 . . . . . . . . . . . . . . 1 . . . . . 2 . . 1 2 . Burn 9 | . . . . . 6 3 . . . . . . . . . . . . . . . . . . . . . . . . . . Meltdown 4 | . . . . . . . . . . . . . . . . . . . . . . . . . . . 1 . . 1 2 . Corrupt 2 | . . . . . . . . . . . . . . . . . . . . . 1 . . . . . 1 . . . . . Melee Attacks 38 | . . . . . . 19 5 1 6 . . . . . . . . . . . . . . . . . 2 . 4 1 . . Kinetic 7 | . . . . . . . . . . . . . . . . . . . . . . . . . . . 2 . 4 1 . . Impact . | . . . . . . . . . . . . . . . . . . . . . . . . . . . . . . . . . Slashing 31 | . . . . . . 19 5 1 6 . . . . . . . . . . . . . . . . . . . . . . . Piercing . | . . . . . . . . . . . . . . . . . . . . . . . . . . . . . . . . . Sneak Attacks 5 | . . . . . . 3 1 . 1 . . . . . . . . . . . . . . . . . . . . . . . Combat Hostiles . | . . . . . . . . . . . . . . . . . . . . . . . . . . . . . . . . . Follow-up Attacks . | . . . . . . . . . . . . . . . . . . . . . . . . . . . . . . . . . Damage Inflicted 54044 | 124 1316 218 2011 509 4596 2211 386 23 376 162 1509 1103 194 1456 33 3073 2446 3334 . 2707 5078 1468 1380 474 1499 1133 2173 149 345 2044 2755 7759 Guns 7180 | 124 824 . 805 159 1996 1250 . . . . . . . . . . . . . . 656 68 327 . 573 398 . . . . . . Cannons 27410 | . 405 87 879 . 987 363 . 23 302 . 1138 1090 194 1007 . 2140 713 1351 . 1461 1514 . . . . 706 1629 149 136 1987 2610 6539 Explosions 18047 | . 50 120 295 333 1599 340 171 . . 162 268 . . 449 . 805 1733 1983 . 1246 2839 1400 1053 474 926 . 453 . . . 128 1220 Melee 698 | . . . . . . 222 215 . 74 . . . . . . . . . . . . . . . . . 54 . 133 . . . Ramming 709 | . 37 11 32 17 14 36 . . . . 103 13 . . 33 128 . . . . 69 . . . . 29 37 . 76 57 17 . Kinetic 2292 | 62 636 . 805 159 385 58 . . . . . . . . . . . . . . . . . . . . 54 . 133 . . . Thermal 28012 | 62 593 87 1011 . 1720 1250 . . . . 1242 1090 . 1366 . 2140 713 774 . 1378 3095 68 327 . 573 963 1426 44 136 1596 2124 4234 Explosive 15261 | . . 120 163 333 1346 340 171 . . 162 . . . . . 663 1733 1983 . 1246 1347 1400 1053 474 926 . 453 . . . 128 1220 Electromagnetic 7259 | . 50 . . . 1131 305 . 23 302 . 164 . 194 90 . 142 . 577 . 83 567 . . . . 141 203 105 . 391 486 2305 Impact . | . . . . . . . . . . . . . . . . . . . . . . . . . . . . . . . . . Slashing 511 | . . . . . . 222 215 . 74 . . . . . . . . . . . . . . . . . . . . . . . Piercing . | . . . . . . . . . . . . . . . . . . . . . . . . . . . . . . . . . Highest Corruption 21 | . . . . . . 1 1 1 1 7 1 1 1 1 3 6 . 8 8 21 6 . . . . 3 12 . . 1 . . Average Corruption 3 | . . . . . . 1 1 1 1 1 1 1 1 1 1 2 . 7 8 11 3 . . . . 2 12 . . 1 . . Corruption Purged 13 | . . . . . . . . . . . . . . . . 6 . . . . 6 . . . . 1 . . . . . . Corruption Blocked 9 | . . . . . . . . . . . . . . . . . . . . . . . . . . . . . . . 2 7 Effects 135 | . . . . . . 5 4 9 5 2 2 7 3 4 1 8 . 31 5 30 6 . . . . 6 2 . . 5 . . Message Errors 26 | . . . . . . 2 1 2 1 . 2 2 1 1 1 . . 4 1 8 . . . . . . . . . . . . Matter Fused 28 | . . . . . . 2 . 2 2 . . . . . . 1 . 7 2 5 1 . . . . 3 . . . 3 . . Heat Flow Errors 17 | . . . . . . . . . . . . 3 1 1 . 1 . 4 . 3 3 . . . . . . . . 1 . . Energy Discharges 18 | . . . . . . 1 . 2 . . . . . . . . . 4 1 6 . . . . . 2 1 . . 1 . . Parts Fused 1 | . . . . . . . . . . . . . . . . . . . . 1 . . . . . . . . . . . . Data Loss (minor) 21 | . . . . . . . 2 1 1 1 . . . 2 . 3 . 5 1 3 . . . . . 1 1 . . . . . Data Loss (major) 5 | . . . . . . . . . 1 . . . 1 . . . . 1 . 2 . . . . . . . . . . . . Misfires 12 | . . . . . . . 1 1 . . . 1 . . . 2 . 5 . 1 1 . . . . . . . . . . . Alerts 6 | . . . . . . . . 1 . 1 . 1 . . . 1 . 1 . 1 . . . . . . . . . . . . Weapon Failures 1 | . . . . . . . . . . . . . . . . . . . . . 1 . . . . . . . . . . . Overload Shots 33 | . . . . . . . . . . . . . 1 . . . . . . . . . . . . . . . . 5 . 27 Effects 3 | . . . . . . . . . . . . . . . . . . . . . . . . . . . . . . 1 . 2 Short Circuit 3 | . . . . . . . . . . . . . . . . . . . . . . . . . . . . . . 1 . 2 Overflow Damage 2117 | . 3 . 32 44 61 111 22 . . . 77 . . 35 . 187 67 91 . 208 278 24 100 . 116 15 150 . 31 42 233 190 Projectiles 1172 | . 3 . . . 26 9 . . . . 55 . . 23 . 154 11 57 . 146 130 . . . . 15 93 . . 42 233 175 Explosions 736 | . . . 32 44 35 . . . . . . . . 12 . 28 56 34 . 62 148 24 100 . 116 . 30 . . . . 15 Melee 209 | . . . . . . 102 22 . . . 22 . . . . 5 . . . . . . . . . . 27 . 31 . . . Knockbacks 9 | . . . . . 1 . . . . . . . . . . 3 . . . . 2 . . . . . . . 3 . . . Impact 7 | . . . . . 1 . . . . . . . . . . 3 . . . . 1 . . . . . . . 2 . . . Kinetic . | . . . . . . . . . . . . . . . . . . . . . . . . . . . . . . . . . Secondary 2 | . . . . . . . . . . . . . . . . . . . . . 1 . . . . . . . 1 . . . Self-Inflicted Damage 544 | . . 9 99 6 149 12 . . . . 20 . . 60 . 26 . 22 . 37 . . . . 3 . . . . . 101 . Shots 16 | . . 1 1 1 4 1 . . . . 1 . . 1 . 1 . 1 . 2 . . . . 1 . . . . . 1 . Rammed 17 | . 5 2 5 1 3 1 . . . . . . . . . . . . . . . . . . . . . . . . . . Targets Rammed 49 | . 7 2 6 1 3 2 . . . . 7 1 . . 2 5 . . . . 4 . . . . 2 1 . 2 3 1 . Kicked 30 | . 1 . . . . 1 . . . . 7 1 . . 2 5 . . . . 4 . . . . 2 1 . 2 3 1 . Crushed 2 | . 1 . 1 . . . . . . . . . . . . . . . . . . . . . . . . . . . . . Highest Temperature 370 | 18 234 129 153 45 281 131 36 30 139 150 180 185 150 163 . 370 204 308 . 219 278 18 42 . 221 133 222 198 80 328 72 242 Average Temperature 60 | 8 66 59 41 23 52 36 19 13 56 78 50 54 62 64 . 100 64 78 . 23 82 7 10 . 100 37 52 58 30 68 34 59 Received Heat Transfer 3562 | . 339 33 204 . 801 245 . . . . 33 100 . . 36 67 68 555 . 38 29 17 78 . 55 9 17 . 16 33 43 746 Effects 6 | . . . . . . . . . . . . . . . . 4 1 1 . . . . . . . . . . . . . . Shutdowns 1 | . . . . . . . . . . . . . . . . 1 . . . . . . . . . . . . . . . . Energy Bleed 2 | . . . . . . . . . . . . . . . . . 1 1 . . . . . . . . . . . . . . Interference 3 | . . . . . . . . . . . . . . . . 3 . . . . . . . . . . . . . . . . Siege Activations . | . . . . . . . . . . . . . . . . . . . . . . . . . . . . . . . . . Robots Corrupted 28 | . . . . . 1 . . . 1 . . . 1 1 . 1 . 2 . . 4 . . . . 1 3 . . 2 3 8 Combat Hostiles 24 | . . . . . 1 . . . 1 . . . 1 . . . . 2 . . 4 . . . . . 2 . . 2 3 8 Parts Fried 57 | . . . . . 5 . . . 1 . 2 1 2 2 . 2 . 1 . . 5 . . . . 2 4 1 . 6 4 19 Impact Corruptions 4 | . . . . . . . . . . . 1 . . . . 1 . . . . . . . . . . 1 . 1 . . . Robots Melted 8 | . . . . . 2 . . . . . . . . . . . . . . . 1 . . . . 1 1 . . 1 2 . Combat Hostiles 8 | . . . . . 2 . . . . . . . . . . . . . . . 1 . . . . 1 1 . . 1 2 . Parts Melted 54 | . 2 . 3 . 10 3 . . . . . . . . . . . . . 1 4 . . . . 2 4 1 . 6 15 3 Heat Transferred 22467 | 185 1406 185 1950 . 3985 2923 . . . . 387 . . 400 . . . 259 . . 2148 74 370 . 592 851 1110 37 111 1186 1628 2680 Parts Sabotaged . | . . . . . . . . . . . . . . . . . . . . . . . . . . . . . . . . . Parts Stolen . | . . . . . . . . . . . . . . . . . . . . . . . . . . . . . . . . . Parts Stripped 38 | . . . . . . . . . . . . . . . . . . . . . . . . . . . 12 . 18 8 . . Power Chain Reactions 9 | . . . . . 1 . . . . . 2 . . 4 . . . . . . 2 . . . . . . . . . . . Alert | -11 -10 -10 -9 -9 -8 -7 -7 -7 -7 -6 -6 -6 -6 -6 -6 -5 -5 -5 -5 -4 -4 -4 -4 -4 -3 -3 -3 -2 -2 -2 -1 -1 ------- Run | Yrd Mat Min Mat Min Mat Fac Low Low Dat Pro Fac Ext Cet Arc Hub Fac Upp Upp Zhi Pro Fac Upp Upp War Pro Res Qua Res Tes Sec Acc Com Peak Influence 1579 | 25 310 187 480 408 1111 643 . . . . 252 390 544 429 431 452 . . . . 723 . . . . 161 399 220 163 413 656 1579 Initial 505 | . 16 52 . 154 158 505 . . . . 44 123 218 137 149 148 . . . . . . . . . . . 139 . 81 227 361 Average 361 | 11 152 132 239 275 656 506 . . . . 53 213 382 392 230 300 . . . . 376 . . . . 41 186 70 75 202 384 1249 Maximum Alert Level 4 | . 1 . 2 2 4 2 . . . . 1 1 2 2 2 2 . . . . 3 . . . . . 1 1 . 2 2 4 Low Security (%) 38 | 100 81 100 22 1 9 . . . . . 96 43 . 3 26 12 . . . . 24 . . . . 100 55 86 100 41 6 . Level 1 29 | . 18 . 68 93 10 2 . . . . 3 56 87 30 67 77 . . . . 34 . . . . . 44 13 . 57 50 1 Level 2 21 | . . . 8 5 43 97 . . . . . . 12 65 6 10 . . . . 30 . . . . . . . . 1 42 14 Level 3 3 | . . . . . 26 . . . . . . . . . . . . . . . 10 . . . . . . . . . . 2 Level 4 7 | . . . . . 10 . . . . . . . . . . . . . . . . . . . . . . . . . . 80 Level 5 . | . . . . . . . . . . . . . . . . . . . . . . . . . . . . . . . . . High Security . | . . . . . . . . . . . . . . . . . . . . . . . . . . . . . . . . . Max Security . | . . . . . . . . . . . . . . . . . . . . . . . . . . . . . . . . . Squads Dispatched 75 | . 6 . 1 1 5 7 . . . . 7 2 . . 2 2 . . . . 6 . . . . 8 4 2 5 4 3 10 Investigation 14 | . 3 . . 1 1 . . . . . 1 2 . . 2 . . . . . 1 . . . . 2 . 1 . . . . Extermination 19 | . . . . . . 2 . . . . 3 . . . . 2 . . . . 1 . . . . . 2 . 1 3 1 4 Reinforcement 28 | . 3 . 1 . 4 3 . . . . 3 . . . . . . . . . 2 . . . . 5 2 1 3 1 . . Assault 13 | . . . . . . 1 . . . . . . . . . . . . . . 2 . . . . 1 . . 1 . 2 6 Garrison 1 | . . . . . . 1 . . . . . . . . . . . . . . . . . . . . . . . . . . Intercept . | . . . . . . . . . . . . . . . . . . . . . . . . . . . . . . . . . Searches Triggered . | . . . . . . . . . . . . . . . . . . . . . . . . . . . . . . . . . Construction Impeded 3 | . . . . . 1 . . . . . 1 . . . . . . . . . 1 . . . . . . . . . . . Haulers Reinforced 3 | . . . . . . 1 . . . . . . . . . . . . . . 1 . . . . 1 . . . . . . Active Scanning Responses . | . . . . . . . . . . . . . . . . . . . . . . . . . . . . . . . . . Cargo Convoy Interrupts . | . . . . . . . . . . . . . . . . . . . . . . . . . . . . . . . . . Stealth | -11 -10 -10 -9 -9 -8 -7 -7 -7 -7 -6 -6 -6 -6 -6 -6 -5 -5 -5 -5 -4 -4 -4 -4 -4 -3 -3 -3 -2 -2 -2 -1 -1 --------- Run | Yrd Mat Min Mat Min Mat Fac Low Low Dat Pro Fac Ext Cet Arc Hub Fac Upp Upp Zhi Pro Fac Upp Upp War Pro Res Qua Res Tes Sec Acc Com Distress Signals 29 | . 3 . 1 . 4 . . . . . . 1 2 . . 1 . . . . . . . . . 9 . 2 . 1 2 3 Communications Jammed 140 | . . . . . 2 3 . . . . . . . . . . . . . . . . . . . 1 43 . . 10 34 47 Distress Signals 135 | . . . . . 2 3 . . . . . . . . . . . . . . . . . . . . 43 . . 10 34 43 Times Spotted 572 | . 41 5 37 11 64 33 2 5 4 3 14 18 8 10 17 22 13 16 . 14 24 7 11 4 7 9 19 5 7 29 30 83 Peak Tracking Total 14 | . 6 3 6 4 6 6 3 3 3 3 4 3 5 1 11 5 5 4 . 4 5 5 5 9 4 2 5 2 2 8 6 14 Tactical Retreats 26 | . 1 . . . 3 2 . 2 1 . 3 1 . . . 2 . 2 . . . . . 1 2 . . . . . 3 3 Traps | -11 -10 -10 -9 -9 -8 -7 -7 -7 -7 -6 -6 -6 -6 -6 -6 -5 -5 -5 -5 -4 -4 -4 -4 -4 -3 -3 -3 -2 -2 -2 -1 -1 ------- Run | Yrd Mat Min Mat Min Mat Fac Low Low Dat Pro Fac Ext Cet Arc Hub Fac Upp Upp Zhi Pro Fac Upp Upp War Pro Res Qua Res Tes Sec Acc Com Traps Triggered 14 | . 1 . . . 6 3 . . . . . . . . . 1 . . . . . . . . . . . . 1 1 . 1 Indirectly . | . . . . . . . . . . . . . . . . . . . . . . . . . . . . . . . . . Trap Hack Attempts . | . . . . . . . . . . . . . . . . . . . . . . . . . . . . . . . . . Triggered . | . . . . . . . . . . . . . . . . . . . . . . . . . . . . . . . . . Disarmed . | . . . . . . . . . . . . . . . . . . . . . . . . . . . . . . . . . Reprogrammed . | . . . . . . . . . . . . . . . . . . . . . . . . . . . . . . . . . Reused . | . . . . . . . . . . . . . . . . . . . . . . . . . . . . . . . . . Traps Extracted . | . . . . . . . . . . . . . . . . . . . . . . . . . . . . . . . . . Installed . | . . . . . . . . . . . . . . . . . . . . . . . . . . . . . . . . . Triggered 13 | . . . . . . . . . . . . . . . . . . 1 . . . . . 12 . . . . . . . . Most Traps Carried 2 | . . 2 2 1 1 . . . . . . . . . . . . . . . . . . . . . . . . . . . Machines | -11 -10 -10 -9 -9 -8 -7 -7 -7 -7 -6 -6 -6 -6 -6 -6 -5 -5 -5 -5 -4 -4 -4 -4 -4 -3 -3 -3 -2 -2 -2 -1 -1 ---------- Run | Yrd Mat Min Mat Min Mat Fac Low Low Dat Pro Fac Ext Cet Arc Hub Fac Upp Upp Zhi Pro Fac Upp Upp War Pro Res Qua Res Tes Sec Acc Com Machines Disabled 63 | . 1 . 6 . 4 . . . 1 . . 1 1 1 1 1 . . . . 15 1 . . . . 7 1 5 7 4 6 Max in Single Turn 10 | . 1 . 3 . 1 . . . 1 . . . 1 . . 1 . . . . 10 1 . . . . 1 1 1 1 1 2 Garrison Access 7 | . . . . . . 1 . . . . . . . . . . . . . . 1 . . . . 2 . 1 1 . 1 . Phase Generator 1 | . . . . . . . . . . . . . . . . . . . . . . . . . . . . . . . . 1 Network Hub 2 | . . . . . . . . . . . . . . . 2 . . . . . . . . . . . . . . . . . Energy Cycler 1 | . . . . . . . . . . . . 1 . . . . . . . . . . . . . . . . . . . . Machines Repaired . | . . . . . . . . . . . . . . . . . . . . . . . . . . . . . . . . . Machines Dismantled . | . . . . . . . . . . . . . . . . . . . . . . . . . . . . . . . . . Machines Sabotaged 1 | . . . . . . . . . . . . . . . 1 . . . . . . . . . . . . . . . . . Overloaded Fab Kills . | . . . . . . . . . . . . . . . . . . . . . . . . . . . . . . . . . Hacking | -11 -10 -10 -9 -9 -8 -7 -7 -7 -7 -6 -6 -6 -6 -6 -6 -5 -5 -5 -5 -4 -4 -4 -4 -4 -3 -3 -3 -2 -2 -2 -1 -1 --------- Run | Yrd Mat Min Mat Min Mat Fac Low Low Dat Pro Fac Ext Cet Arc Hub Fac Upp Upp Zhi Pro Fac Upp Upp War Pro Res Qua Res Tes Sec Acc Com Machines Accessed 155 | . 7 1 9 1 10 13 1 2 3 . 7 13 . . 4 6 1 . 4 . 12 . . 4 . 5 8 3 11 7 13 10 Terminals 100 | . 5 . 8 . 10 9 . . . . 2 13 . . 4 3 . . . . 5 . . . . 2 5 1 7 6 11 9 Fabricators 11 | . . . . . . 2 . . . . 3 . . . . 1 . . . . 3 . . . . 1 . . 1 . . . Repair Stations 4 | . . . . . . . . . . . 1 . . . . . . . . . 1 . . . . . . . 1 . 1 . Recycling Units 8 | . 2 . . . . 1 . . . . . . . . . 1 . . . . 2 . . . . . . 1 . . . 1 Scanalyzers 6 | . . . 1 . . . . . . . . . . . . . . . . . . . . . . . 3 . 1 1 . . Garrison Access 9 | . . . . . . 1 . . . . 1 . . . . 1 . . . . 1 . . . . 2 . 1 1 . 1 . Total Hacks 548 | . 20 1 30 1 46 30 1 8 23 . 11 24 . . 7 29 1 . 17 . 74 . . 8 . 16 25 8 40 49 35 44 Successful 302 | . 11 1 16 1 22 18 1 8 23 . 4 10 . . 2 13 1 . 17 . 44 . . 8 . 4 7 3 17 23 21 27 Failed 243 | . 9 . 13 . 23 12 . . . . 7 14 . . 5 16 . . . . 29 . . . . 12 18 5 23 26 14 17 Catastrophic 35 | . . . . . . . . . . . 2 4 . . 2 7 . . . . . . . . . 7 2 1 3 4 1 2 Database Lockouts 3 | . . . 1 . 1 . . . . . . . . . . . . . . . 1 . . . . . . . . . . . Manual 260 | . 15 . 20 . 31 18 . . . . 5 4 1 . 7 13 . . . . 35 . . 1 . 5 12 4 13 33 20 23 Terminals 375 | . 18 . 26 . 46 22 . . . . 3 24 . . 7 23 . . . . 33 . . . . 7 16 3 31 43 33 40 Fabricators 30 | . . . . . . 4 . . . . 4 . . . . 1 . . . . 14 . . . . 5 . . 2 . . . Repair Stations 22 | . . . . . . . . . . . 1 . . . . . . . . . 18 . . . . . . . 2 . 1 . Recycling Units 21 | . 2 . . . . 2 . . . . . . . . . 3 . . . . 8 . . . . . . 2 . . . 4 Scanalyzers 20 | . . . 4 . . . . . . . . . . . . . . . . . . . . . . . 9 . 1 6 . . Garrison Access 20 | . . . . . . 2 . . . . 3 . . . . 2 . . . . 1 . . . . 4 . 3 4 . 1 . Terminal Hacks 164 | . 3 1 5 1 9 6 1 8 23 . 1 9 . . . 8 1 . 17 . 10 . . 8 . 2 3 1 8 13 10 16 Record 30 | . . . . . . . . 7 6 . . . . . . . . . 5 . . . . 7 . 1 1 . 1 . . 2 Part Schematic 14 | . . . . . 1 . . . 9 . . . . . . . . . 4 . . . . . . . . . . . . . Robot Schematic 5 | . . . . . . . . . 5 . . . . . . . . . . . . . . . . . . . . . . . Robot Analysis 13 | . . . 1 . 1 . . . . . . . . . . . . . 4 . 1 . . . . 1 . . . 2 1 2 Prototype ID Bank 20 | . 2 . 1 . 3 1 . . 3 . . 2 . . . . . . 4 . 1 . . . . . . . 1 1 . 1 Open Door 18 | . . 1 . 1 . . 1 1 . . 1 7 . . . . 1 . . . . . . 1 . . 1 . . . 3 . Level Access Points 3 | . . . . . . . . . . . . . . . . . . . . . 1 . . . . . . . 1 1 . . Branch Access Points 5 | . . . . . . 1 . . . . . . . . . 1 . . . . 1 . . . . . . 1 . . 1 . Emergency Access Points 2 | . . . . . . . . . . . . . . . . 1 . . . . . . . . . . . . . . . 1 Terminal Index 5 | . . . . . 1 . . . . . . . . . . . . . . . 1 . . . . . . . . 1 1 1 Garrison Index 2 | . . . . . . . . . . . . . . . . . . . . . 1 . . . . . . . . . . 1 Alert Level 5 | . . . . . . . . . . . . . . . . 1 . . . . . . . . . . . . 1 1 1 1 Unreport Threat 5 | . . . . . . . . . . . . . . . . 1 . . . . . . . . . . . . . 3 1 . Locate Traps 16 | . 1 . 2 . 1 2 . . . . . . . . . 1 . . . . 1 . . . . . . . 1 1 1 5 Maintenance Status 1 | . . . . . . . . . . . . . . . . . . . . . . . . . . . . . . . . 1 Surveillance Status 1 | . . . . . . . . . . . . . . . . . . . . . . . . . . . . . . 1 . . Patrol Status 5 | . . . 1 . . . . . . . . . . . . 1 . . . . 1 . . . . . . . 1 1 . . Hauler Manifests 1 | . . . . . . 1 . . . . . . . . . . . . . . . . . . . . . . . . . . Zone Layout 11 | . . . . . 2 1 . . . . . . . . . 2 . . . . 2 . . . . . 1 . 1 1 1 . Protovariant Controls 1 | . . . . . . . . . . . . . . . . . . . . . . . . . . . . . 1 . . . Disengage Seal 1 | . . . . . . . . . . . . . . . . . . . . . . . . . . . . . . . . 1 Fabricator Hacks 6 | . . . . . . 2 . . . . . . . . . . . . . . 3 . . . . 1 . . . . . . Network Status 3 | . . . . . . 1 . . . . . . . . . . . . . . 1 . . . . 1 . . . . . . Build 3 | . . . . . . 1 . . . . . . . . . . . . . . 2 . . . . . . . . . . . Repair Station Hacks 13 | . . . . . . . . . . . . . . . . . . . . . 13 . . . . . . . . . . . Scan Component 7 | . . . . . . . . . . . . . . . . . . . . . 7 . . . . . . . . . . . Repair 6 | . . . . . . . . . . . . . . . . . . . . . 6 . . . . . . . . . . . Recycling Unit Hacks 4 | . . . . . . . . . . . . . . . . . . . . . 2 . . . . . . 1 . . . 1 Retrieve Components 4 | . . . . . . . . . . . . . . . . . . . . . 2 . . . . . . 1 . . . 1 Scanalyzer 5 | . . . 4 . . . . . . . . . . . . . . . . . . . . . . . 1 . . . . . Insert Component 3 | . . . 2 . . . . . . . . . . . . . . . . . . . . . . . 1 . . . . . Analyze 2 | . . . 2 . . . . . . . . . . . . . . . . . . . . . . . . . . . . . Garrison Access Hacks 5 | . . . . . . 1 . . . . . . . . . . . . . . 1 . . . . 1 . . 1 . 1 . Seal Access 5 | . . . . . . 1 . . . . . . . . . . . . . . 1 . . . . 1 . . 1 . 1 . Unauthorized Hacks 105 | . 8 . 7 . 13 9 . . . . 3 1 . . 2 5 . . . . 15 . . . . . 3 1 8 10 10 10 Terminals 84 | . 6 . 7 . 13 5 . . . . 1 1 . . 2 5 . . . . 10 . . . . . 2 . 5 9 9 9 Track 4 | . . . . . 1 . . . . . . . . . . . . . . . 1 . . . . . . . . 1 1 . Assimilate 6 | . . . . . . . . . . . . . . . . . . . . . 3 . . . . . . . . 1 2 . Botnet 21 | . 1 . 1 . 2 1 . . . . 1 1 . . . 2 . . . . 2 . . . . . 2 . 2 2 1 3 Disrupt 1 | . . . . . . . . . . . . . . . . . . . . . . . . . . . . . . 1 . . Operators 6 | . 1 . 1 . 1 . . . . . . . . . . . . . . . 1 . . . . . . . . 1 . 1 Skim 44 | . 4 . 5 . 9 4 . . . . . . . . . 3 . . . . 3 . . . . . . . 3 3 5 5 Sabotage 2 | . . . . . . . . . . . . . . . 2 . . . . . . . . . . . . . . . . . Fabricators 8 | . . . . . . 2 . . . . 1 . . . . . . . . . 4 . . . . . . . 1 . . . Report 3 | . . . . . . 1 . . . . 1 . . . . . . . . . 1 . . . . . . . . . . . Prioritize 2 | . . . . . . . . . . . . . . . . . . . . . 2 . . . . . . . . . . . Haulers 3 | . . . . . . 1 . . . . . . . . . . . . . . 1 . . . . . . . 1 . . . Repair Stations 3 | . . . . . . . . . . . 1 . . . . . . . . . . . . . . . . . 1 . 1 . Mechanics 3 | . . . . . . . . . . . 1 . . . . . . . . . . . . . . . . . 1 . 1 . Recycling Units 7 | . 2 . . . . 2 . . . . . . . . . . . . . . 1 . . . . . . 1 . . . 1 Recyclers 4 | . . . . . . 1 . . . . . . . . . . . . . . 1 . . . . . . 1 . . . 1 Mask 1 | . . . . . . 1 . . . . . . . . . . . . . . . . . . . . . . . . . . Tunnel 2 | . 2 . . . . . . . . . . . . . . . . . . . . . . . . . . . . . . . Scanalyzers 3 | . . . . . . . . . . . . . . . . . . . . . . . . . . . 1 . 1 1 . . Researchers 3 | . . . . . . . . . . . . . . . . . . . . . . . . . . . 1 . 1 1 . . Garrison Access . | . . . . . . . . . . . . . . . . . . . . . . . . . . . . . . . . . Data Cores Recovered 3 | . . . . . . . . . . . . . . . 1 . . . . . . . . . . 1 . . . . . 1 Used 1 | . . . . . . . . . . . . . . . . . . . . . . . . . . . . . . . . 1 Hacking Detections 108 | . 5 . 8 . 10 10 . . . . 5 9 1 . 2 6 . . . . 8 . . . . 4 6 2 9 6 8 9 Full Trace Events 6 | . . . . . . . . . . . 1 2 . . . . . . . . 1 . . . . 1 . 1 . . . . Feedback Events . | . . . . . . . . . . . . . . . . . . . . . . . . . . . . . . . . . Feedback Blocked . | . . . . . . . . . . . . . . . . . . . . . . . . . . . . . . . . . Robot Schematics Acquired 7 | . . . . . . . . . 5 . . . . . . . . . . . . . . . . . . . 2 . . . Robots Built . | . . . . . . . . . . . . . . . . . . . . . . . . . . . . . . . . . Authchips . | . . . . . . . . . . . . . . . . . . . . . . . . . . . . . . . . . Time . | . . . . . . . . . . . . . . . . . . . . . . . . . . . . . . . . . Total Robot Build Rating . | . . . . . . . . . . . . . . . . . . . . . . . . . . . . . . . . . Part Schematics Acquired 17 | . . . 2 . 1 . . . 9 . . . . . . . . . 4 . . . . . . . . . 1 . . . Parts Built 6 | . . . . . . 2 . . . . . . . . . . . . . . 4 . . . . . . . . . . . Authchips . | . . . . . . . . . . . . . . . . . . . . . . . . . . . . . . . . . Time 121 | . . . . . . 58 . . . . . . . . . . . . . . 63 . . . . . . . . . . . Total Part Build Rating 46 | . . . . . . 14 . . . . . . . . . . . . . . 32 . . . . . . . . . . . Parts Repaired 6 | . . . . . . . . . . . . . . . . . . . . . 6 . . . . . . . . . . . Time 521 | . . . . . . . . . . . . . . . . . . . . . 521 . . . . . . . . . . . Parts Recycled . | . . . . . . . . . . . . . . . . . . . . . . . . . . . . . . . . . Recycled Matter . | . . . . . . . . . . . . . . . . . . . . . . . . . . . . . . . . . Retrieved Matter . | . . . . . . . . . . . . . . . . . . . . . . . . . . . . . . . . . Retrieved Components 30 | . . . . . . . . . . . . . . . . . . . . . 18 . . . . . . 2 . . . 10 Parts Scanalyzed 2 | . . . 2 . . . . . . . . . . . . . . . . . . . . . . . . . . . . . Part Schematics Acquired 2 | . . . 2 . . . . . . . . . . . . . . . . . . . . . . . . . . . . . Parts Damaged . | . . . . . . . . . . . . . . . . . . . . . . . . . . . . . . . . . Bothacking | -11 -10 -10 -9 -9 -8 -7 -7 -7 -7 -6 -6 -6 -6 -6 -6 -5 -5 -5 -5 -4 -4 -4 -4 -4 -3 -3 -3 -2 -2 -2 -1 -1 ------------ Run | Yrd Mat Min Mat Min Mat Fac Low Low Dat Pro Fac Ext Cet Arc Hub Fac Upp Upp Zhi Pro Fac Upp Upp War Pro Res Qua Res Tes Sec Acc Com Used RIF Installer . | . . . . . . . . . . . . . . . . . . . . . . . . . . . . . . . . . Robots Hacked 2 | . . . . . . . . . . . . . . . . . . . . . . . . . . . . . . . . 2 Non-combat . | . . . . . . . . . . . . . . . . . . . . . . . . . . . . . . . . . Combat 2 | . . . . . . . . . . . . . . . . . . . . . . . . . . . . . . . . 2 Robot Hacks Applied 2 | . . . . . . . . . . . . . . . . . . . . . . . . . . . . . . . . 2 parse_system 2 | . . . . . . . . . . . . . . . . . . . . . . . . . . . . . . . . 2 Manual 1 | . . . . . . . . . . . . . . . . . . . . . . . . . . . . . . . . 1 Relay Couplers Released 8 | . . . . . . . . . . . . . . . . . . . . . 3 . . . . 3 . 2 . . . . Machine Destruction 8 | . . . . . . . . . . . . . . . . . . . . . 3 . . . . 3 . 2 . . . . Fabnet Peak Effective % . | . . . . . . . . . . . . . . . . . . . . . . . . . . . . . . . . . Robots Rewired 7 | . . . . . . . . . . . . 6 . . . . . . . . . 1 . . . . . . . . . . Allies Hacked . | . . . . . . . . . . . . . . . . . . . . . . . . . . . . . . . . . Hacks Repelled . | . . . . . . . . . . . . . . . . . . . . . . . . . . . . . . . . . Allies | -11 -10 -10 -9 -9 -8 -7 -7 -7 -7 -6 -6 -6 -6 -6 -6 -5 -5 -5 -5 -4 -4 -4 -4 -4 -3 -3 -3 -2 -2 -2 -1 -1 -------- Run | Yrd Mat Min Mat Min Mat Fac Low Low Dat Pro Fac Ext Cet Arc Hub Fac Upp Upp Zhi Pro Fac Upp Upp War Pro Res Qua Res Tes Sec Acc Com Total Allies 28 | . . . . . . . . . . . . 14 5 . . . . . . . 3 1 . . . 3 . . . 1 1 . Largest Group 12 | . . . . . . . . . . . . 7 12 9 7 . . . . . 2 1 . . . 3 . . . 1 1 . Highest-Rated Group 825 | . . . . . . . . . . . . 345 825 722 519 . . . . . 36 47 . . . 138 . . . 26 45 . Highest-Rated Ally 159 | . . . . . . . . . . . . 159 152 152 96 . . . . . 26 47 . . . 46 . . . 26 45 . Total Orders 23 | . . . . . . . . . 5 . . . 5 . . . 2 . . . . . . . . . . 11 . . . . STAY 2 | . . . . . . . . . . . . . 2 . . . . . . . . . . . . . . . . . . . FOLLOW 3 | . . . . . . . . . . . . . 3 . . . . . . . . . . . . . . . . . . . EXPLORE 7 | . . . . . . . . . . . . . . . . . . . . . . . . . . . . 7 . . . . RETURN 11 | . . . . . . . . . 5 . . . . . . . 2 . . . . . . . . . . 4 . . . . Ally Attacks 350 | . . . . . . . . . 125 . . 102 47 18 32 . 10 . . . . 2 . . . 14 . . . . . . Total Damage 7379 | . . . . . . . . . 564 . . 2938 1479 631 1334 . 58 . . . . 79 . . . 296 . . . . . . Kills 35 | . . . . . . . . . 1 . . 15 8 4 5 . . . . . . . . . . 2 . . . . . . Allies Corrupted 3 | . . . . . . . . . . . . . . . 3 . . . . . . . . . . . . . . . . . Allies Melted 1 | . . . . . . . . . . . . . . . . . . . . . . . . 1 . . . . . . . . Intel | -11 -10 -10 -9 -9 -8 -7 -7 -7 -7 -6 -6 -6 -6 -6 -6 -5 -5 -5 -5 -4 -4 -4 -4 -4 -3 -3 -3 -2 -2 -2 -1 -1 ------- Run | Yrd Mat Min Mat Min Mat Fac Low Low Dat Pro Fac Ext Cet Arc Hub Fac Upp Upp Zhi Pro Fac Upp Upp War Pro Res Qua Res Tes Sec Acc Com Robot Analysis Total 13 | . . . 1 . 1 . . . . . . . . . . . . . 4 . 1 . . . . 1 . . . 2 1 2 Derelict Logs Recovered 15 | . . 2 . 2 . . 2 1 . 1 . . . . . . 3 . . 1 . 1 2 . . . . . . . . . Drone Launches 39 | . . . . . . . . . 32 . . . . . . . 4 . . . . . . . . . . 3 . . . . Drone Recoveries 35 | . . . . . . . . . 31 . . . . . . . 3 . . . . . . . . . . 1 . . . . Exploration | -11 -10 -10 -9 -9 -8 -7 -7 -7 -7 -6 -6 -6 -6 -6 -6 -5 -5 -5 -5 -4 -4 -4 -4 -4 -3 -3 -3 -2 -2 -2 -1 -1 ------------- Run | Yrd Mat Min Mat Min Mat Fac Low Low Dat Pro Fac Ext Cet Arc Hub Fac Upp Upp Zhi Pro Fac Upp Upp War Pro Res Qua Res Tes Sec Acc Com Turns Passed 31563 | 119 1469 551 1660 380 1810 2165 920 940 745 285 1020 1025 460 350 128 1272 1034 1121 195 810 1565 680 1015 1050 830 1210 815 1205 710 1191 922 1911 Spaces Moved 19010 | 65 766 318 837 205 739 1030 713 740 344 210 667 673 243 64 87 718 714 520 146 346 704 511 716 830 619 847 469 885 579 815 682 1208 Core 11 | 11 . . . . . . . . . . . . . . . . . . . . . . . . . . . . . . . . Treads 3386 | . 496 318 696 205 739 932 . . . . . . . . . . . . . . . . . . . . . . . . . . Legs 15454 | 54 270 . . . . 98 713 740 344 210 667 673 243 64 87 718 714 520 146 346 704 511 716 830 619 847 469 885 579 801 682 1204 Wheels 141 | . . . 141 . . . . . . . . . . . . . . . . . . . . . . . . . . . . . Hover . | . . . . . . . . . . . . . . . . . . . . . . . . . . . . . . . . . Flight . | . . . . . . . . . . . . . . . . . . . . . . . . . . . . . . . . . Fastest Speed 50 | 50 120 160 110 160 155 122 122 122 122 122 122 120 120 120 120 120 120 120 120 190 120 120 120 120 120 113 113 103 100 100 100 100 Average Speed 130 | 108 145 160 151 160 167 173 122 122 139 122 122 121 134 120 120 137 122 187 120 190 123 120 120 120 120 117 113 110 100 105 100 118 Slowest Speed 246 | 120 160 160 160 160 246 246 122 122 192 122 122 192 190 120 120 190 190 190 120 190 190 120 120 120 120 120 113 113 173 173 100 178 Overloaded Moves . | . . . . . . . . . . . . . . . . . . . . . . . . . . . . . . . . . Propulsion Burnouts . | . . . . . . . . . . . . . . . . . . . . . . . . . . . . . . . . . Robots Hopped 1 | . . . . . . . . . . . . . 1 . . . . . . . . . . . . . . . . . . . Cave-ins Triggered . | . . . . . . . . . . . . . . . . . . . . . . . . . . . . . . . . . Spacefolds 6 | . . . . . . . . . . . . . . . . . . . . . . . . . . . . . . 5 . 1 Exploration Rate (%) 56 | 3 96 78 73 51 82 37 78 80 80 40 19 76 66 80 8 21 83 68 59 60 19 70 75 82 85 33 62 36 68 33 20 46 Regions Visited 32 Branch Regions 22 Pre-discovered Areas 14 | . 2 1 . . 2 . . 1 1 1 . . . . . . 1 . 3 . . 1 1 . . . . . . . . . Known Exits Taken 23 | . . . . 1 1 1 1 1 1 1 1 1 1 1 1 1 1 . . . 1 1 . . 1 1 1 1 1 1 1 . Unknown Exits Taken 9 | 1 1 1 1 . . . . . . . . . . . . . . 1 1 1 . . 1 1 . . . . . . . . Scrap Searched 22 | . . 1 . 2 . . 3 2 . 3 . . . . . . 3 2 . 2 . 1 2 . 1 . . . . . . . Spaces Dug 338 | . . . 1 17 11 30 5 1 . 1 15 2 . . . 20 5 . . 62 21 6 55 . 28 3 9 9 3 12 13 9 Terrain Destroyed 1455 | . . 10 46 25 94 52 15 1 . 7 39 11 . 26 . 56 104 169 . 124 80 108 128 8 62 14 39 10 6 33 40 148 Melee 18 | . . . . . . 16 1 1 . . . . . . . . . . . . . . . . . . . . . . . . Projectile 347 | . . . 1 . . 1 . . . 3 32 11 . 6 . 33 11 7 . 11 23 16 48 . 5 14 25 10 6 33 27 24 AOE 1090 | . . 10 45 25 94 35 14 . . 4 7 . . 20 . 23 93 162 . 113 57 92 80 8 57 . 14 . . . 13 124 Terrain Rammed . | . . . . . . . . . . . . . . . . . . . . . . . . . . . . . . . . . Walls Destroyed . | . . . . . . . . . . . . . . . . . . . . . . . . . . . . . . . . . Machines Disabled . | . . . . . . . . . . . . . . . . . . . . . . . . . . . . . . . . . Actions | -11 -10 -10 -9 -9 -8 -7 -7 -7 -7 -6 -6 -6 -6 -6 -6 -5 -5 -5 -5 -4 -4 -4 -4 -4 -3 -3 -3 -2 -2 -2 -1 -1 --------- Run | Yrd Mat Min Mat Min Mat Fac Low Low Dat Pro Fac Ext Cet Arc Hub Fac Upp Upp Zhi Pro Fac Upp Upp War Pro Res Qua Res Tes Sec Acc Com Total 23851 | 97 949 346 1071 238 1084 1262 750 774 593 233 788 825 369 288 109 873 821 593 166 420 1290 545 795 879 676 1005 665 1087 683 1037 908 1632 Wait 2051 | 10 46 10 58 7 61 62 10 24 129 15 46 31 99 203 14 32 63 7 1 7 441 3 10 22 17 46 81 159 51 84 87 115 Move 18964 | 64 765 317 836 204 738 1029 712 739 343 209 666 672 240 63 86 717 713 519 145 345 703 510 715 829 618 846 468 884 578 805 681 1205 Hop 1 | . . . . . . . . . . . . . 1 . . . . . . . . . . . . . . . . . . . Pick Up 245 | 8 14 3 19 4 34 17 6 1 25 . 2 1 3 . 2 4 2 4 2 3 22 . 5 4 3 14 10 4 8 8 5 8 Fast Attach 163 | 5 2 1 11 . 19 10 . . 5 . 3 1 4 . . 16 . 2 7 . 7 . 4 4 6 14 7 8 4 15 3 5 Attach 60 | 2 . 1 3 . 5 1 . . 4 . 1 . . . . 1 . 3 1 3 9 1 1 . . 2 5 . 3 3 3 8 Detach 12 | . 1 . 1 . 1 . . . . . . . . . . . . . 1 1 . . . . 1 . 1 . . . 1 4 Swap 540 | . 14 5 22 7 59 51 6 5 20 4 13 8 9 2 3 23 15 20 1 22 28 10 12 9 5 22 18 5 9 42 31 40 Drop 368 | 1 15 1 33 4 38 22 6 3 51 1 3 4 9 . 2 17 3 3 8 1 17 1 8 9 9 27 17 10 12 18 5 10 Fire 1270 | 7 85 6 82 11 126 49 5 1 10 4 47 22 4 20 . 58 25 35 . 38 59 15 40 2 17 32 55 17 12 58 91 237 Melee 38 | . . . . . . 19 5 1 6 . . . . . . . . . . . . . . . . . 2 . 4 1 . . Ram . | . . . . . . . . . . . . . . . . . . . . . . . . . . . . . . . . . Kick 30 | . 1 . . . . 1 . . . . 7 1 . . 2 5 . . . . 4 . . . . 2 1 . 2 3 1 . Crush 19 | . 6 2 6 1 3 1 . . . . . . . . . . . . . . . . . . . . . . . . . . Escape Stasis . | . . . . . . . . . . . . . . . . . . . . . . . . . . . . . . . . . Rewire 90 | . . . . . . . . . . . . 85 . . . . . . . . . 5 . . . . . . . . . . Trap . | . . . . . . . . . . . . . . . . . . . . . . . . . . . . . . . . . Miscellaneous . | . . . . . . . . . . . . . . . . . . . . . . . . . . . . . . . . . Route ------- -11/Scrapyard -10/Materials (discovered 6 exits: *Mat x3 / *Min x2 / [*Sub]) -10/Mines (discovered 2 exits: *Mat x2) -9/Materials (discovered 4 exits: *Mat x3 / *Min) -9/Mines -8/Materials (discovered 3 exits: *Fac x3) -7/Factory (discovered 4 exits: Fac x2 / *Low x2) -7/Lower Caves -7/Lower Caves (discovered 2 exits: *Fac / *Dat) -7/Data Miner -6/Proximity Caves -6/Factory -6/Extension (discovered 2 exits: *Fac / *Cet) -6/Cetus (discovered 2 exits: *Fac / *Arc) -6/Archives (discovered 3 exits: *Fac / *Hub x2) -6/Hub_04(d) -5/Factory (discovered 2 exits: *Upp x2) -5/Upper Caves -5/Upper Caves -5/Zhirov -4/Proximity Caves -4/Factory (discovered 7 exits: Res x4 / *Upp x2 / Arm) -4/Upper Caves -4/Upper Caves -4/Warlord -3/Proximity Caves -3/Research (discovered 2 exits: *Res / *Qua) -3/Quarantine -2/Research (discovered 4 exits: *Acc x2 / *Tes x2) -2/Testing (discovered 2 exits: Acc / *Sec) -2/Section 7 -1/Access (discovered 2 exits: Sur / *Com) -1/Command (discovered 3 exits: Sur x2 / Ac0) History --------- Turn | Location | Event 16 | -11/Scrapyard | Discovered new exit (range 15) 120 | -11/Scrapyard | Entered Materials 302 | -10/Materials | Discovered new exit (range 16) 330 | -10/Materials | Build established: Mutant 495 | -10/Materials | Discovered new exit (range 4) 554 | -10/Materials | Discovered new exit (range 8) 592 | -10/Materials | Core integrity fell below 50% 738 | -10/Materials | Discovered new exit (range 12) 1012 | -10/Materials | Discovered new exit (range 16) 1274 | -10/Materials | Discovered new exit (range 11) 1589 | -10/Materials | Entered Mines 1660 | -10/Mines | Found a hidden stash of uninstalled traps 1778 | -10/Mines | Learned Materials terminal intel 1859 | -10/Mines | Found the Drone Emporium 1867 | -10/Mines | Found Prototype Device 1867 | -10/Mines | Identified Thief Drone Bay 1984 | -10/Mines | Discovered new exit (range 5) 2014 | -10/Mines | Learned location of Storage (-9) 2115 | -10/Mines | Discovered new exit (range 11) 2140 | -10/Mines | Entered Materials 2140 | -9/Materials | Evolved 2 slots: Propulsion x1, Utility x1 2141 | -9/Materials | Loaded intel: 12 terminal locations 2499 | -9/Materials | Central database locked down 2942 | -9/Materials | Identified exit to Materials 2977 | -9/Materials | Discovered new exit (range 16) 3017 | -9/Materials | Learned Storage trap positions 3083 | -9/Materials | Learned location of 1 exit from Recycling 3139 | -9/Materials | Learned Storage trap positions 3219 | -9/Materials | Learned location of 1 exit from Recycling 3262 | -9/Materials | Loaded intel: 59 machine locations 3531 | -9/Materials | Build established: Scavenger-Mutant 3800 | -9/Materials | Entered Mines 3865 | -9/Mines | Learned location of 1 exit from Materials 4033 | -9/Mines | Met a Derelict shopkeep closing up shop 4050 | -9/Mines | Learned location of 1 exit from Materials 4146 | -9/Mines | Discovered exit to Materials (range 4) 4180 | -9/Mines | Entered Materials 4180 | -8/Materials | Evolved 2 slots: Utility x2 4181 | -8/Materials | Identified exit to Factory 4368 | -8/Materials | Build established: Mutant 4969 | -8/Materials | Discovered exit to Factory (range 9) 5007 | -8/Materials | Learned 12 Factory zone layouts 5068 | -8/Materials | Learned location of 1 exit from Recycling 5120 | -8/Materials | Learned location of Lower Caves (-7) 5189 | -8/Materials | Learned Storage interactive machine intel 5228 | -8/Materials | Learned location of 1 exit from Recycling 5279 | -8/Materials | Learned location of 1 exit from Extension 5529 | -8/Materials | Destroyed 10 combat bots 5840 | -8/Materials | Central database locked down 5990 | -8/Materials | Entered Factory 5990 | -7/Factory | Evolved 2 slots: Propulsion x1, Utility x1 5991 | -7/Factory | Identified exit to Factory 6345 | -7/Factory | Build established: Scavenger-Mutant 6776 | -7/Factory | Garrison activated, responded to threat 6784 | -7/Factory | Fabricated HERF Cannon (x2) 7618 | -7/Factory | Identified exit to Lower Caves 7990 | -7/Factory | First assault squad dispatched 8010 | -7/Factory | Build established: Mutant 8155 | -7/Factory | Entered Lower Caves 8961 | -7/Lower Caves | Learned Factory interactive machine intel 8965 | -7/Lower Caves | Discovered new exit (range 13) 8998 | -7/Lower Caves | Learned Factory trap positions 9054 | -7/Lower Caves | Identified exit to Lower Caves 9075 | -7/Lower Caves | Entered another Lower Caves area 9106 | -7/Lower Caves | Discovered exit to Factory (range 6) 9148 | -7/Lower Caves | Learned location of 1 exit from Factory 9148 | -7/Lower Caves | Learned Factory stockpile data 9148 | -7/Lower Caves | Learned Factory garrison access intel 9388 | -7/Lower Caves | Encountered a Warlord checkpoint 9590 | -7/Lower Caves | Attracted the attention of an 0b10 checkpoint 9682 | -7/Lower Caves | Learned Factory terminal intel 9883 | -7/Lower Caves | Discovered new exit (range 14) 9901 | -7/Lower Caves | Identified exit to Data Miner 10015 | -7/Lower Caves | Entered Data Miner 10015 | -7/Data Miner | Discovered new exit (range 6) 10020 | -7/Data Miner | Identified exit to Proximity Caves 10039 | -7/Data Miner | Met Data Miner 10060 | -7/Data Miner | Learned location of Section 7 (-2) 10060 | -7/Data Miner | Acquired the access code to Warlord's prototype stash 10078 | -7/Data Miner | Received God Mode back door access code from Data Miner 10135 | -7/Data Miner | Data Conduit disabled 10320 | -7/Data Miner | Lost 3 parts (1n2u) 10325 | -7/Data Miner | Found Exp. Thermal Shield 10704 | -7/Data Miner | Found Exp. Thermal Shield 10760 | -7/Data Miner | Entered Proximity Caves 10834 | -6/Proximity Caves | Acquired the password to a Derelict Tinkerer's latest research 10955 | -6/Proximity Caves | Discovered exit to Factory (range 15) 11045 | -6/Proximity Caves | Entered Factory 11045 | -6/Factory | Evolved 2 slots: Power x1, Utility x1 11046 | -6/Factory | Identified exit to Extension 11047 | -6/Factory | Loaded intel: 106 trap records 11049 | -6/Factory | Loaded intel: 54 interactive machine locations 11050 | -6/Factory | Loaded intel: 28 terminal locations 11051 | -6/Factory | Loaded intel: 4 garrison access locations 12065 | -6/Factory | Entered Extension 12066 | -6/Extension | Identified exit to Cetus 12128 | -6/Extension | Rescued A7 12339 | -6/Extension | Rescued a captive Derelict 12472 | -6/Extension | Rescued a captive Derelict 12532 | -6/Extension | Rescued a captive Derelict 12536 | -6/Extension | Rescued a captive Derelict 12664 | -6/Extension | Spotted B-75 Beast 12685 | -6/Extension | Destroyed B-75 Beast 12686 | -6/Extension | Spotted B-75 Beast 12695 | -6/Extension | Allies destroyed B-75 Beast 12722 | -6/Extension | Lost 3 allies 12766 | -6/Extension | Rescued a captive Derelict 12829 | -6/Extension | Rescued a captive Derelict 12835 | -6/Extension | Rescued a captive Derelict 12884 | -6/Extension | Energy Cycler disabled 12885 | -6/Extension | Rescued a captive Derelict 12885 | -6/Extension | Rescued a captive Derelict 12887 | -6/Extension | Rescued a captive Derelict 12890 | -6/Extension | Rescued a captive Derelict 13057 | -6/Extension | Discovered new exit (range 10) 13090 | -6/Extension | Entered Cetus 13090 | -6/Cetus | Accompanied by 7 allies (A7) 13095 | -6/Cetus | Acquired a Cetus Manufacturing Module code from A7 13123 | -6/Cetus | Spotted Cetus Guard 13123 | -6/Cetus | Spotted Cetus Guard 13126 | -6/Cetus | Spotted Cetus Guard 13127 | -6/Cetus | Spotted Cetus Guard 13127 | -6/Cetus | Allies destroyed Cetus Guard 13130 | -6/Cetus | Destroyed Cetus Guard 13132 | -6/Cetus | Allies destroyed Cetus Guard 13134 | -6/Cetus | Destroyed Cetus Guard 13218 | -6/Cetus | Started Cetus Manufacturing Module 13236 | -6/Cetus | Escorted A7 to Cetus Mainframe 13243 | -6/Cetus | Manufactured an Enhanced Grunt 13268 | -6/Cetus | Manufactured an Enhanced Grunt 13293 | -6/Cetus | Manufactured an Enhanced Grunt 13318 | -6/Cetus | Manufactured an Enhanced Grunt 13343 | -6/Cetus | Manufactured an Enhanced Grunt 13380 | -6/Cetus | Discovered new exit (range 16) 13431 | -6/Cetus | Spotted Cetus Guard 13431 | -6/Cetus | Spotted Cetus Guard 13432 | -6/Cetus | Spotted Cetus Guard 13432 | -6/Cetus | Allies destroyed Cetus Guard 13435 | -6/Cetus | Allies destroyed Cetus Guard 13440 | -6/Cetus | Spotted Cetus Guard 13445 | -6/Cetus | Allies destroyed Cetus Guard 13447 | -6/Cetus | Allies destroyed Cetus Guard 13459 | -6/Cetus | Discovered new exit (range 15) 13471 | -6/Cetus | Met Revision 17 13523 | -6/Cetus | Identified exit to Archives 13537 | -6/Cetus | Build established: Commander-Mutant 13550 | -6/Cetus | Entered Archives 13550 | -6/Archives | Accompanied by 9 allies (A7) 13555 | -6/Archives | Received a hacking code to weaken MAIN.C 13638 | -6/Archives | Discovered new exit (range 14) 13661 | -6/Archives | Discovered new exit (range 15) 13680 | -6/Archives | Discovered new exit (range 16) 13705 | -6/Archives | Identified exit to Hub_04(d) 13900 | -6/Archives | Entered Hub_04(d) 13900 | -6/Hub_04(d) | Accompanied by 7 allies 13918 | -6/Hub_04(d) | Discovered new exit (range 16) 14005 | -6/Hub_04(d) | Network Hub disabled 14006 | -6/Hub_04(d) | Spotted Lightning 14006 | -6/Hub_04(d) | Spotted Lightning 14007 | -6/Hub_04(d) | Spotted Lightning 14013 | -6/Hub_04(d) | Network Hub disabled 14017 | -6/Hub_04(d) | Spotted Lightning 14019 | -6/Hub_04(d) | Spotted Lightning 14021 | -6/Hub_04(d) | Spotted Lightning 14026 | -6/Hub_04(d) | Identified exit to Factory 14028 | -6/Hub_04(d) | Entered Factory 14028 | -5/Factory | Evolved 2 slots: Utility x2 14051 | -5/Factory | Lost 6 allies 14173 | -5/Factory | Identified exit to Upper Caves 14309 | -5/Factory | Build established: Mutant 15208 | -5/Factory | Found Prototype Launcher 15208 | -5/Factory | Identified Mni. Smartbomb Launcher 15300 | -5/Factory | Entered Upper Caves 15300 | -5/Upper Caves | Spotted B-75 Beast 15445 | -5/Upper Caves | Destroyed B-75 Beast 15997 | -5/Upper Caves | Learned Factory emergency access door positions 16253 | -5/Upper Caves | Discovered new exit (range 15) 16285 | -5/Upper Caves | Identified exit to Upper Caves 16303 | -5/Upper Caves | Learned location of Armory (-4) 16314 | -5/Upper Caves | Learned Factory stockpile data 16315 | -5/Upper Caves | Attracted the attention of an 0b10 outpost 16334 | -5/Upper Caves | Entered another Upper Caves area 17168 | -5/Upper Caves | Spotted B-75 Beast 17198 | -5/Upper Caves | Destroyed B-75 Beast 17432 | -5/Upper Caves | Discovered new exit (range 8) 17455 | -5/Upper Caves | Entered Zhirov 17456 | -5/Zhirov | Discovered new exit (range 3) 17479 | -5/Zhirov | Met Zhirov 17506 | -5/Zhirov | Learned location of Quarantine (-3) 17506 | -5/Zhirov | Learned location of Testing (-2) 17506 | -5/Zhirov | Learned location of Command (-1) 17513 | -5/Zhirov | Zhirov requested help retrieving the SGEMP Prototype 17533 | -5/Zhirov | Found Alien Artifact 17533 | -5/Zhirov | Identified Integrated Dissipator 17533 | -5/Zhirov | Installed Integrated Dissipator, increased core heat dissipation (+20) 17650 | -5/Zhirov | Entered Proximity Caves 17716 | -4/Proximity Caves | System corruption reached 10% 17998 | -4/Proximity Caves | Ambushed by research squad 18148 | -4/Proximity Caves | Learned location of 1 exit from Upper Caves 18435 | -4/Proximity Caves | Discovered new exit (range 11) 18460 | -4/Proximity Caves | Entered Factory 18460 | -4/Factory | Evolved 2 slots: Propulsion x1, Utility x1 18596 | -4/Factory | Identified exit to Upper Caves 18596 | -4/Factory | Identified exit to Armory 18615 | -4/Factory | Fabricated Enh. Quantum Rifle (x2) 18786 | -4/Factory | Build established: Scavenger-Mutant 18889 | -4/Factory | Central database locked down 18889 | -4/Factory | Identified exit to Research 18967 | -4/Factory | Fabricated Antimatter Reactor (x2) 19460 | -4/Factory | First assault squad dispatched 19554 | -4/Factory | Repaired Neutron Cannon 19667 | -4/Factory | Repaired Broken Enh. Flexi-carbon Leg 19757 | -4/Factory | Repaired Enh. Flexi-carbon Leg 19847 | -4/Factory | Repaired Enh. Flexi-carbon Leg 19910 | -4/Factory | Repaired HERF Cannon 19991 | -4/Factory | Repaired Exp. Weapon Shielding 20025 | -4/Factory | Entered Upper Caves 20026 | -4/Upper Caves | Identified exit to Upper Caves 20027 | -4/Upper Caves | Attracted the attention of an 0b10 outpost 20705 | -4/Upper Caves | Entered another Upper Caves area 21094 | -4/Upper Caves | Learned Research garrison access intel 21480 | -4/Upper Caves | Found DCF Scrap (16 items) 21712 | -4/Upper Caves | Discovered new exit (range 7) 21717 | -4/Upper Caves | Attracted the attention of an 0b10 checkpoint 21720 | -4/Upper Caves | Entered Warlord 21787 | -4/Warlord | Build established: Derelict-Mutant 22158 | -4/Warlord | Learned Factory terminal intel 22160 | -4/Warlord | Learned 4 Armory zone layouts 22160 | -4/Warlord | Learned 4 Research zone layouts 22160 | -4/Warlord | Learned 4 Access zone layouts 22160 | -4/Warlord | Learned 4 Command zone layouts 22161 | -4/Warlord | Learned Research emergency access door positions 22161 | -4/Warlord | Learned Quarantine stockpile data 22289 | -4/Warlord | Met Warlord 22300 | -4/Warlord | Warlord's base attacked by MAIN.C 22301 | -4/Warlord | Opened Warlord's prototype stash 22321 | -4/Warlord | Found Prototype Device 22321 | -4/Warlord | Identified Exp. Cloaking Device 22327 | -4/Warlord | Found Prototype Device 22327 | -4/Warlord | Identified System Purifier 22350 | -4/Warlord | Found Prototype Reactor 22360 | -4/Warlord | Found Prototype Hackware 22618 | -4/Warlord | Build established: Mutant 22649 | -4/Warlord | P-70 Sage assimilated allied UZ-2ED(B) 22650 | -4/Warlord | Warlord forces counterattacked 22695 | -4/Warlord | Lost 5 allies 22715 | -4/Warlord | Opened side exit 22747 | -4/Warlord | Discovered new exit (range 10) 22770 | -4/Warlord | Entered Proximity Caves 22786 | -3/Proximity Caves | Lost 7 allies 22963 | -3/Proximity Caves | Build established: Infiltrator-Mutant 23075 | -3/Proximity Caves | Found Prototype Device 23075 | -3/Proximity Caves | Identified Thermal Barrier 23507 | -3/Proximity Caves | Discovered exit to Research (range 8) 23600 | -3/Proximity Caves | Entered Research 23600 | -3/Research | Evolved 2 slots: Propulsion x1, Utility x1 23603 | -3/Research | Loaded intel: 3 garrison access locations 23800 | -3/Research | Revision forces began assault on 0b10 23834 | -3/Research | Met up with Revision 17++ 23923 | -3/Research | Found Prototype Device 23923 | -3/Research | Identified Exp. ECM Suite 24017 | -3/Research | Found Prototype Hackware 24017 | -3/Research | Identified Exp. System Shield 24168 | -3/Research | Discovered new exit (range 12) 24242 | -3/Research | Found Quantum Capacitor 24300 | -3/Research | Research terminal network offline 24485 | -3/Research | Found Prototype Processor 24485 | -3/Research | Identified Spectral Analyzer 24678 | -3/Research | Spotted Executioner 24720 | -3/Research | Discovered new exit (range 15) 24742 | -3/Research | Identified exit to Research 24801 | -3/Research | Identified exit to Quarantine 24810 | -3/Research | Entered Quarantine 24856 | -3/Quarantine | Identified System Mapper 24935 | -3/Quarantine | Cryocooling Duct disabled 24950 | -3/Quarantine | Ambient heat levels rising (+20) 24950 | -3/Quarantine | Non-combat units ordered to evacuate 25256 | -3/Quarantine | Identified Vortex Chain Reactor 25261 | -3/Quarantine | Found Alien Impact Weapon 25287 | -3/Quarantine | Found Alien Artifact 25287 | -3/Quarantine | Identified Phase Armor 25338 | -3/Quarantine | Found Alien Artifact 25340 | -3/Quarantine | Identified Subatomic Replicator 25340 | -3/Quarantine | Used Subatomic Replicator to replicate Phase Armor 25489 | -3/Quarantine | Discovered exit to Research (range 13) 25496 | -3/Quarantine | Spotted Alpha 7 25524 | -3/Quarantine | Identified Core Stripper 25534 | -3/Quarantine | Destroyed Alpha 7 25567 | -3/Quarantine | Found Exp. Targeting Computer 25568 | -3/Quarantine | System corruption reached 10% 25625 | -3/Quarantine | Entered Research 25625 | -2/Research | Warlord forces began assault on 0b10 25625 | -2/Research | Evolved 2 slots: Power x1, Utility x1 25649 | -2/Research | Identified exit to Testing 25735 | -2/Research | Research machine network offline 25838 | -2/Research | Build established: Infiltrator-Skirmisher 25981 | -2/Research | Found Prototype Processor 25981 | -2/Research | Identified Exp. Core Analyzer 26135 | -2/Research | Lost 5 allies 26156 | -2/Research | Borebot progress halted 26180 | -2/Research | Discovered new exit (range 16) 26240 | -2/Research | Found Prototype Processor 26240 | -2/Research | Identified Exp. Melee Analysis Suite 26298 | -2/Research | Borebot progress halted 26307 | -2/Research | Spotted B-90 Cyclops 26406 | -2/Research | Spotted Executioner 26532 | -2/Research | Lost 9 allies 26550 | -2/Research | Discovered new exit (range 7) 26556 | -2/Research | Identified exit to Access 26590 | -2/Research | Met up with Warlord 26625 | -2/Research | Warlord invited to help at Command 26654 | -2/Research | Spotted Striker 26830 | -2/Research | Entered Testing 26884 | -2/Testing | Found Prototype Device 26884 | -2/Testing | Identified Exp. Focal Shield 27247 | -2/Testing | Found Prototype Energy Cannon 27247 | -2/Testing | Identified Cld. Nova Cannon 27270 | -2/Testing | Protovariant out of control (PD-U543AOAB90) 27270 | -2/Testing | Unleashed a protovariant (PD-U543AOAB90) 27360 | -2/Testing | Spotted PD-U543AOAB90 27404 | -2/Testing | Spotted Fortress 27423 | -2/Testing | Destroyed Fortress 27429 | -2/Testing | Found Prototype Device 27429 | -2/Testing | Identified Exp. Force Field 27436 | -2/Testing | Found Exp. EM Disruption Field 27515 | -2/Testing | Discovered new exit (range 6) 27519 | -2/Testing | Identified exit to Section 7 27540 | -2/Testing | Entered Section 7 27989 | -2/Section 7 | Found Alien Artifact 27989 | -2/Section 7 | Identified Integrated Mediator 27989 | -2/Section 7 | Installed Integrated Mediator, increased core attachment efficiency 28018 | -2/Section 7 | Found Alien Artifact 28018 | -2/Section 7 | Identified Spacefold Activator 28048 | -2/Section 7 | Found Integrated Dissipator 28048 | -2/Section 7 | Installed Integrated Dissipator, increased core heat dissipation (+20) 28092 | -2/Section 7 | Found Alien Artifact 28092 | -2/Section 7 | Identified Integrity Redistributor 28092 | -2/Section 7 | Used Integrity Redistributor, redistributed integrity from core (-197) 28189 | -2/Section 7 | Found Integrity Redistributor 28604 | -2/Section 7 | Spotted S7 Guard 28617 | -2/Section 7 | Destroyed S7 Guard 28655 | -2/Section 7 | Found Alien Artifact 28655 | -2/Section 7 | Identified Core Physics Calibrator 28731 | -2/Section 7 | Entered Access 28731 | -1/Access | Evolved 2 slots (calibrated): Utility x3, -Weapon x1 28766 | -1/Access | Identified exit to Command 29062 | -1/Access | Build established: Hacker-Mutant 29481 | -1/Access | First assault squad dispatched 29522 | -1/Access | Spotted B-99 Colossus 29527 | -1/Access | Identified exit to Surface 29653 | -1/Access | Entered Command 29903 | -1/Command | First assault squad dispatched 29969 | -1/Command | Phase Generator disabled 30266 | -1/Command | Used Integrity Redistributor, redistributed integrity from core (-225) 30319 | -1/Command | Disengaged cave seal 30319 | -1/Command | Derelicts emerged from the dark tunnel 30319 | -1/Command | Welcomed Warlord to Command 30354 | -1/Command | Spotted B-99 Colossus 30395 | -1/Command | Lost 3 allies 30424 | -1/Command | Learned Access emergency access door positions 30492 | -1/Command | Identified exit to Access_0 30551 | -1/Command | Learned 4 Access zone layouts 30601 | -1/Command | Learned Access fabricator intel 30625 | -1/Command | Lost 4 allies 30657 | -1/Command | Spotted B-99 Colossus 30671 | -1/Command | Learned 8 Access zone layouts 30690 | -1/Command | Learned 8 Access zone layouts 30717 | -1/Command | Learned Access garrison access intel 30752 | -1/Command | Learned Access trap positions 30796 | -1/Command | Learned Access stockpile data 31268 | -1/Command | Warlord commented on Warlord statues 31295 | -1/Command | Spotted M Guard 31295 | -1/Command | Spotted M Guard 31296 | -1/Command | Spotted Combat Programmer 31296 | -1/Command | Spotted Combat Programmer 31308 | -1/Command | Core integrity fell below 50% 31341 | -1/Command | Destroyed Combat Programmer 31360 | -1/Command | All MAIN.C guards destroyed 31380 | -1/Command | Found Prototype Launcher 31380 | -1/Command | Identified Ragnarok Missile Launcher 31389 | -1/Command | Found Prototype Reactor 31389 | -1/Command | Identified Zero-point Reactor 31449 | -1/Command | Met MAIN.C 31455 | -1/Command | Hacked MAIN.C using A7's code 31479 | -1/Command | 0b10 Conduit disabled 31480 | -1/Command | MAIN.C activated Command garrisons 31521 | -1/Command | Warlord destroyed during the assault 31546 | -1/Command | Core integrity fell below 20% 31564 | -1/Command | Destroyed by H-88 Terminator with Heavy Machine Gun Last Messages --------------- 31550_ Penetrated by Slug. 31551_ Slug penetrates Reinforced Barrier. 31551_ Penetrated by Slug. 31551_ MAIN.C reaction time slowed by virus. 31553_ P-80 Master destroyed. 31553_ Slug penetrates 0b10 Conduit. 31554_ Penetrated by Slug. 31556_ MAIN.C reaction time slowed by virus. 31557_ Slug penetrates 0b10 Conduit. 31557_ Penetrated by Slug. 31558_ Thermal Barrier destroyed. 31558_ Cld. Nova Cannon blasted off. 31558_ Knocked back. 31558_ P-80 Master resets H-88 Terminator, system corruption cleaned. 31560_ Penetrated by Slug. 31561_ Dropped Quantum Capacitor. 31561_ MAIN.C reaction time slowed by virus. 31564_ Penetrated by Slug. [Achievement: I Was Wrong!] [Achievement: Collector] Map ----- +----------------------------------------------------+ | ?????????????????????????????????????????????????? | | ?????????? T#??????????????????????????????? | | ??????????####"""##??????????????????????????????? | | ??????????####"""##??????????????????????????????? | | ??????????# #??????????????????????????????? | | ??????????# #??????????????????????????????? | | ??????????# #??????????????????????????????? | | ??????????# #??????????????????????????????? | | ??????????#########??????????????????????????????? | | ??????????#??????????????????????????????????????? | | ??????????#??????????????????????????????????????? | | ??????????#??????????????????????????????????????? | | ??????????#?#######################??????????????? | | ??????????#?#????????????????????????????????????? | | ??????????#?#?#######################????????????? | | ??????????#?#?#""""""" "" % #????????????? | | ??????????#?#?#"" %[#????????????? | | ??????????#?#?#""""" "" !!############## | | ??????????#?#?#""""""""" " =psh! "%%" | | ??????????#?#?#" " *pss "" | | ??????????#?#?#"" """ shsx | | ??????????#?#?#"" " ############## | | ??????????#?#?# " " " #????????????? | | ??????????#?#?# " " #????????????? | | ??????????#?#?# " ! ""#????????????? | | ??????????#?#?#"""" @ ] % """"#????????????? | | ??????????????#"" """""#????????????? | | ??????????????# M """"""#????????????? | | ??????????????# " " #????????????? | | ??????????????# " " " " ?????????????? | | ??????????????" " " """" " ?????????????? | | ??????????????" "" " " """" #????????????? | | ??????????????" " " " " ?????????????? | | ??????????????# """""""""" "????????????????? | | ??????????????# " """ " """""????????????????? | | ??????????????# ? ??" " " "????????????????? | | ??????????????##??????#########??????????????????? | | ?????????????????????????????????????????????????? | | ?????????????????????????????????????????????????? | | ?????????????????????????????????????????????????? | | ?????????????????????????????????????????????????? | | ??R??????????????????????????????????????????????? | | ?????????????????????????????????????????????????? | | ?????????????????????????????????????????????????? | | ?????????????????????????????????????????????????? | | ?????????????????????????????????????????????????? | | ?????????????????????????????????????????????????? | | ?????????????????????????????????????????????????? | | ?????????????????????????????????????????????????? | | ?????????????????????????????????????????????????? | +----------------------------------------------------+ Best States ------------- Heat Dissipation 130 Coolant Potential 80 Energy Generation 83 Energy Capacity 950 Matter Stores 300 Matter Capacity 300 Sight Range 23 Robot Scan Range 16 Terrain Scan Range 24 Terrain Scan Density 210 Jamming Range 14 Cloak Strength 4 Power Amplification 20 Corruption Containment 12 Corruption Block 20 Armor Coverage 825 Resistance: KI 25 Resistance: TH 50 Resistance: EM 75 Propulsion Shielding 66 Weapon Shielding 90 Point Defense Rating 240 Evasion (%) 65 Targeting Accuracy 12 Core Analysis 8 Recoil Reduction 4 Energy Filtering 50 Particle Charging 20 Salvage Targeting 3 Offensive Hacking 34 Defensive Hacking 16 Item Schematics ----------------- Huge Storage Unit | -9/Materials | Scanalyzed Imp. Medium Laser | -9/Materials | Scanalyzed Imp. Utility Shielding | -8/Materials | Hacked Combat Drone Bay | -7/Data Miner | Free Lgt. Regenerative Plating | -7/Data Miner | Free Exp. Targeting Computer | -7/Data Miner | Free Ion Burst Cannon | -7/Data Miner | Free Biomechanical Wings | -7/Data Miner | Free Field Propulsion Drive | -7/Data Miner | Free Adv. Shield Generator | -7/Data Miner | Free Lrn. Proton Cannon | -7/Data Miner | Free Adv. Concussive RPG | -7/Data Miner | Free Assault Drone Bay | -5/Zhirov | Free Exp. Heat Sink | -5/Zhirov | Free Exp. Optical Array | -5/Zhirov | Free Imp. Arc Thrower | -5/Zhirov | Free Exp. EM Disruption Field | -2/Testing | Archive Robot Schematics ------------------ Y-54 Guardian | -7/Data Miner | Free B-48 Gladiator | -7/Data Miner | Free L-41 Fighter | -7/Data Miner | Free S-27 Virus | -7/Data Miner | Free R-10 Processor | -7/Data Miner | Free B-74 Champion | -2/Testing | Archive K-01 Serf | -2/Testing | Archive Fabricated ------------ HERF Cannon | x2 | -7/Factory | Preloaded Enh. Quantum Rifle | x2 | -4/Factory | Preloaded Antimatter Reactor | x2 | -4/Factory | Preloaded Alien Tech Used ----------------- Integrated Dissipator Phase Armor Subatomic Replicator Core Stripper Integrated Mediator Spacefold Activator Integrity Redistributor Core Physics Calibrator Achievements -------------- Collector I Was Wrong! Poison In The Code Rampage Challenges ------------ None Game ------ Seed AnalysisIntegrityStorm Manual? 0 Play Time 06:10:22 Cumulative 274.4 hours Start 2024.10.22 @ 18:42:56 End 2024.10.26 @ 07:32:46 Sessions 11 Manual Loads 0 Difficulty Rogue Special Mode None Game No. 121 Rogue 121 Adventurer 0 Explorer 0 Win Type - Total 10 Types 6/0/3/1/0/0/0/0/0 Lore% 75 Gallery% 75 Achievement% 65 Wizard Run 0 Options --------- Layout 0 ASCII 0 Keyboard 0 Movement Numpad Keybinds 0 Fullscreen 2 Font 18/SmallcapsGlow Map View 76x50 Zoom Use 0% Tactical HUD 1 Map Filters NONE Filters NONE Steam 1 RUN: 6ae1d1e5-a2a8-47c3-b159-6a5196bae3d4